Cogmind - Beta 14 @@@ ROGUE MODE // 2024.08.27 @ 19:55:47 Player: Dosh Result: Establishing 0b11! Performance ------------- Evolutions (9) 4500 Regions Visited (44) 8800 Robots Destroyed (423) 2115 Value Destroyed (29428) 29428 Prototype IDs (289) 5780 Alien Tech Used (0) 0 Bonus (59265) 59265 TOTAL SCORE: 109888 Bonus ------- High Alert Combat Kills 2342 Follower Combat Kills 28195 Entered Garrisons 3400 Used RIF Installer 9500 Destroyed MAIN.C Guards 500 Met MAIN.C 5000 Destroyed MAIN.C Shell 5000 Destroyed MAIN.C 10000 Win 3000 Friendly Fire -7672 Cogmind --------- Core Integrity 991/1600 Matter 300/300 Energy 819/840 System Corruption 0% Temperature Cool (9) Movement Treading (225) Ox1 Location 0b11 Command Parts ------- > --- POWER (3) -------- Zero-point Reactor Vortex Chain Reactor > --- PROPULSION (6) --- Biometal Heavy Treads Biometal Heavy Treads Biometal Heavy Treads > --- UTILITY (14) ----- Advanced Cooling System Experimental Coolant Injector Cargo Storage Unit Precision Energy Filter Improved Utility Shielding Heavy Regenerative Plating Graphene Brace Experimental Force Field Relay Coupler [C] (63) Relay Coupler [C] (68) Relay Coupler [Proto] (30) Experimental System Purifier > --- WEAPON (2) ------- Null Cannon > --- INVENTORY (30) --- Relay Coupler [C] (66) Relay Coupler [Sentry] (51) Enhanced Nova Cannon Improved Potential Cannon Multirail Advanced Remote Datajack Peak State ------------ > --- POWER ------------ Zero-point Reactor Vortex Chain Reactor > --- PROPULSION ------- Biometal Heavy Treads High-density Centrium Leg High-density Centrium Leg High-density Centrium Leg Experimental Biometal Leg > --- UTILITY ---------- Advanced Cooling System Experimental Coolant Injector Precision Energy Filter Heavy Regenerative Plating Graphene Brace Experimental Force Field Relay Coupler [C] Relay Coupler [C] Relay Coupler [Sentry] Relay Coupler [Demolisher] Relay Coupler [Proto] Experimental System Purifier > --- WEAPON ----------- Improved Potential Cannon > --- INVENTORY -------- Relay Coupler [C] Relay Coupler [Sentry] Enhanced Nova Cannon Multirail Advanced Remote Datajack [Rating: 217] Favorites ----------- Power Quantum Reactor Engine Ion Engine Power Core Neutrino Core Reactor Quantum Reactor Propulsion Armored Treads Treads Armored Treads Leg High-density Centrium Leg Utility Relay Coupler [C] Device Quantum Capacitor Storage Cargo Storage Unit Processor Experimental Targeting Computer Hackware Relay Coupler [C] Protection Improved Medium Armor Plating Weapon Enhanced Nova Cannon Energy Gun Spread Laser Energy Cannon Enhanced Nova Cannon Ballistic Gun Enhanced Autogun Ballistic Cannon Light Antimatter Cannon Launcher Missile Launcher Special Weapon Improved Remote Datajack Impact Weapon Power Maul Slashing Weapon Falx Special Melee Weapon Advanced Datajack Build | -11 -10 -10 -9 -9 -9 -8 -8 -8 -8 -7 -7 -7 -7 -6 -6 -5 -5 -5 -5 -5 -5 -5 -5 -4 -4 -4 -4 -4 -4 -3 -3 -3 -3 -2 -2 -2 -2 -2 -2 -2 -1 -1 -1 -1 ------- Run | Yrd Mat Min Mat Sto Gar Mat Gar Mat Gar Fac Was Fac Gar Fac Gar Fac Gar Fac Gar Fac Gar Fac Gar Fac Was Fac Gar Fac Gar Res Gar Qua Gar Res Gar Res Gar Res Tes Gar Acc Gar Acc Com Slots Evolved 18 | . . . 2 . . 2 . . . 2 . . . 2 . 2 . . . . . . . 2 . . . . . 2 . . . 2 . . . . . . 2 . . . Power 2 | . . . . . . . . . . . . . . 1 . . . . . . . . . . . . . . . . . . . . . . . . . . 1 . . . Propulsion 4 | . . . 1 . . . . . . 1 . . . . . . . . . . . . . 1 . . . . . 1 . . . . . . . . . . . . . . Utility 12 | . . . 1 . . 2 . . . 1 . . . 1 . 2 . . . . . . . 1 . . . . . 1 . . . 2 . . . . . . 1 . . . Weapon . | . . . . . . . . . . . . . . . . . . . . . . . . . . . . . . . . . . . . . . . . . . . . . Parts Attached 645 | 5 13 . 10 26 16 22 25 21 23 15 14 5 22 14 10 12 31 6 12 10 16 5 5 6 4 29 17 7 12 7 5 4 18 7 10 10 13 9 13 12 2 14 14 94 Power 53 | 1 2 . 1 1 1 2 2 . 1 1 3 . 1 1 . 1 1 . 2 . 2 . . . . 4 2 . . 1 2 . 1 1 . 2 . . 1 1 1 1 1 12 Engine 11 | 1 2 . 1 1 1 1 1 . . 1 1 . . . . 1 . . . . . . . . . . . . . . . . . . . . . . . . . . . . Core 7 | . . . . . . 1 1 . 1 . 1 . . . . . 1 . 1 . . . . . . 1 . . . . . . . . . . . . . . . . . . Reactor 35 | . . . . . . . . . . . 1 . 1 1 . . . . 1 . 2 . . . . 3 2 . . 1 2 . 1 1 . 2 . . 1 1 1 1 1 12 Propulsion 81 | 2 2 . 6 11 3 3 . 4 1 2 2 1 1 . . . 3 . 1 2 1 . 1 1 1 1 4 . . 2 . 1 . 3 . . . . 1 . 1 1 . 19 Treads 75 | 2 2 . 6 11 3 3 . 4 1 2 2 1 1 . . . 3 . 1 2 1 . 1 1 1 1 2 . . 2 . 1 . 3 . . . . 1 . 1 1 . 15 Leg 6 | . . . . . . . . . . . . . . . . . . . . . . . . . . . 2 . . . . . . . . . . . . . . . . 4 Wheel . | . . . . . . . . . . . . . . . . . . . . . . . . . . . . . . . . . . . . . . . . . . . . . Hover . | . . . . . . . . . . . . . . . . . . . . . . . . . . . . . . . . . . . . . . . . . . . . . Flight . | . . . . . . . . . . . . . . . . . . . . . . . . . . . . . . . . . . . . . . . . . . . . . Utility 294 | . 4 . 1 1 5 9 5 6 4 6 4 1 9 7 8 6 19 4 8 5 8 4 3 5 3 19 9 5 8 4 1 2 14 2 6 5 12 7 6 8 . 11 6 34 Device 92 | . 1 . 1 1 1 2 1 . . 1 2 . 1 1 1 1 9 . . 1 2 1 . 2 2 13 4 2 4 2 . . 6 1 1 3 1 5 3 1 . . 2 13 Storage 5 | . 1 . . . . . . . . . . 1 . . . . . . 1 . . . . . . . 1 . . . . . . . . . . . . . . . . 1 Processor 10 | . 2 . . . 1 1 . . . . . . 1 . 1 . . . . . . . . . . . . . . . . . 1 . . . . 2 . . . . . 1 Hackware 145 | . . . . . 2 2 2 1 3 3 1 . 3 6 3 2 7 4 6 3 6 3 3 2 . 4 3 3 4 2 1 2 7 1 5 2 11 . 2 7 . 11 4 14 Protection 42 | . . . . . 1 4 2 5 1 2 1 . 4 . 3 3 3 . 1 1 . . . 1 1 2 1 . . . . . . . . . . . 1 . . . . 5 Artifact . | . . . . . . . . . . . . . . . . . . . . . . . . . . . . . . . . . . . . . . . . . . . . . Weapon 217 | 2 5 . 2 13 7 8 18 11 17 6 5 3 11 6 2 5 8 2 1 3 5 1 1 . . 5 2 2 4 . 2 1 3 1 4 3 1 2 5 3 . 1 7 29 Energy Gun 27 | 2 4 . 1 9 5 . 5 . . . . . . . . . . . . . . . . . . 1 . . . . . . . . . . . . . . . . . . Energy Cannon 51 | . . . . 1 . . . . . . . . . . 1 2 3 1 1 1 2 1 1 . . . 1 . 2 . 2 . 2 1 2 3 1 1 3 2 . . 4 13 Ballistic Gun 49 | . . . 1 . . 6 7 6 6 4 2 . 4 4 . . . . . . . . . . . . . . . . . . . . . . . . . . . . . 9 Ballistic Cannon 5 | . 1 . . . . . . . . . . . . . . . 2 . . 1 1 . . . . . . . . . . . . . . . . . . . . . . . Launcher 16 | . . . . 1 . . 2 1 1 . 1 . 3 . . 1 . . . . . . . . . 2 . 1 1 . . . . . 1 . . . . . . . . 1 Special Weapon 50 | . . . . 2 2 . . 2 6 2 1 2 2 2 . 2 2 1 . 1 2 . . . . 2 1 1 1 . . 1 1 . 1 . . 1 2 1 . 1 3 5 Impact Weapon 11 | . . . . . . . . 2 4 . . 1 2 . 1 . 1 . . . . . . . . . . . . . . . . . . . . . . . . . . . Slashing Weapon 1 | . . . . . . . . . . . 1 . . . . . . . . . . . . . . . . . . . . . . . . . . . . . . . . . Piercing Weapon . | . . . . . . . . . . . . . . . . . . . . . . . . . . . . . . . . . . . . . . . . . . . . . Special Melee Weapon 7 | . . . . . . 2 4 . . . . . . . . . . . . . . . . . . . . . . . . . . . . . . . . . . . . 1 Unidentified Prototypes 28 | . . . 1 3 . 1 . . . . 1 . . . 1 1 5 . . . . . . 1 . 3 2 1 . . . . 3 . . . . . 3 . . . . 2 Corrupted Parts 3 | . . . . . . . . . . . . . . . . . . . . . . . . . . . . . . . . . . . . . . . . . . . . 3 System Corruption 5 | . . . . . . . . . . . . . . . . . . . . . . . . . . . . . . . . . . . . . . . . . . . . 5 Parts Lost 66 | . . . . 1 3 1 1 1 1 4 . . . . . 2 1 . . . . . . 1 . 7 1 . 3 1 1 1 . . 1 . . . 1 . 1 2 2 29 Power 14 | . . . . 1 1 . . . 1 . . . . . . 1 . . . . . . . . . 2 . . . . 1 . . . . . . . . . . 1 . 6 Propulsion 14 | . . . . . . . . . . 1 . . . . . . . . . . . . . . . 1 1 . . 1 . 1 . . . . . . . . 1 . . 8 Utility 28 | . . . . . 1 1 1 1 . 2 . . . . . 1 1 . . . . . . 1 . 2 . . 2 . . . . . 1 . . . 1 . . 1 2 10 Weapon 10 | . . . . . 1 . . . . 1 . . . . . . . . . . . . . . . 2 . . 1 . . . . . . . . . . . . . . 5 Highest Loss Streak 16 | . . . . 1 2 1 1 1 1 2 . . . . . 1 1 . . . . . . 1 . 7 1 . 2 1 1 1 . . 1 . . . 1 . 1 1 1 16 To Critical Strikes 6 | . . . . . . . . . . . . . . . . . . . . . . . . . . 1 1 . . . . . . . . . . . . . 1 . . 3 Average Slot Usage (%) 83 | . 96 100 99 99 99 94 91 99 100 97 96 84 82 81 85 81 87 88 83 80 80 81 81 81 69 77 77 76 77 76 74 73 75 76 76 77 77 77 77 77 76 79 79 68 Engine 1 | . 14 14 11 10 11 7 3 . . 6 1 . . . . 2 2 . . . . . . . . . . . . . . . . . . . . . . . . . . . Core 1 | . . . . . . 1 5 9 9 1 4 . . . . . 2 5 6 5 1 . . . . . . . . . . . . . . . . . . . . . . . Reactor 6 | . . . . . . . . . . . 1 7 7 13 13 8 5 5 4 5 8 11 11 10 10 9 10 10 10 9 7 9 9 8 8 8 8 8 8 8 12 12 12 8 Treads 16 | . 27 28 32 32 33 27 27 26 27 30 27 15 15 13 13 11 11 11 11 11 10 11 11 13 15 14 10 10 10 14 14 11 14 13 13 13 13 13 13 13 12 12 12 9 Device 10 | . 7 . 11 10 7 8 4 3 . 2 6 7 7 6 6 8 10 11 11 13 15 15 17 14 6 14 15 12 10 17 19 14 17 16 12 12 13 12 12 13 12 12 8 14 Storage 5 | . 5 14 11 11 11 9 9 9 9 7 7 7 7 6 6 5 5 5 5 5 5 5 5 5 5 5 5 5 5 4 4 4 4 4 4 4 4 4 4 4 4 4 4 2 Processor 2 | . 13 14 11 11 11 . . . . . . . . . . . . . . . . . . . . . . . . . . . . 4 4 4 4 4 4 4 4 4 4 1 Hackware 19 | . . . . . 2 12 12 11 15 14 23 23 24 26 26 23 28 24 27 20 23 24 22 23 15 20 20 22 25 20 18 22 19 20 25 26 25 26 26 25 24 27 31 19 Protection 4 | . . . . . 1 10 11 20 20 17 7 7 4 . 5 7 5 9 2 4 . . . 2 4 1 . . . . . . . . . . . . . . . . . 4 Energy Gun 2 | . 25 28 21 21 20 . 2 . . . . . . . . . . . . . . 2 . . . 2 1 . . . . . . . . . . . . . . . . . Energy Cannon 2 | . . . . . . . . . . . . . . . 5 4 4 5 4 5 4 1 4 5 5 2 3 5 4 4 3 4 4 3 3 3 3 4 3 3 4 4 3 2 Ballistic Gun 3 | . . . . . . 16 14 17 14 13 10 12 5 8 . . . . . . . . . . . . . . . . . . . . . . . . . . . . . 1 Special Weapon 2 | . . . . . 1 . . . . 1 . 2 5 4 6 5 4 4 5 4 4 5 5 5 5 3 5 4 4 4 4 4 4 4 3 4 4 4 4 4 4 4 4 . Peak Build Rating 217 | 5 12 13 23 26 25 40 48 46 41 46 68 68 75 84 86 98 104 106 105 105 115 115 117 135 136 139 142 139 139 151 152 150 155 165 175 176 177 177 187 184 190 194 201 217 Average Rating 109 | 3 10 11 19 22 20 35 41 41 40 43 53 67 68 79 82 89 98 104 100 100 106 108 114 126 133 132 138 135 136 148 147 137 152 160 163 174 174 175 181 181 186 191 192 179 On Entrance 104 | . 5 11 13 22 20 25 39 46 41 40 44 68 68 72 78 83 97 103 102 105 101 115 114 116 134 134 131 139 135 139 151 150 146 150 152 175 175 176 175 182 182 186 193 191 Naked Turns . | . . . . . . . . . . . . . . . . . . . . . . . . . . . . . . . . . . . . . . . . . . . . . Heaviest Build 256 | 8 51 51 56 58 59 83 76 79 76 82 75 110 113 138 133 138 135 136 197 210 210 207 207 215 243 243 209 209 197 210 210 210 210 211 211 213 214 214 214 214 222 222 220 256 Greatest Support 230 | 40 40 40 60 63 63 63 60 63 63 83 140 140 140 140 140 140 150 150 150 150 145 145 150 177 177 177 177 135 135 210 205 205 205 225 225 225 225 225 230 230 230 230 215 230 Greatest Overweight (x) 19 | . 1 1 1 1 . 1 1 1 1 . . . . . . . 1 . 1 1 1 1 1 1 1 1 1 1 1 1 1 1 1 1 . . . . . . . 1 1 19 Average Overweight (x) . | . . 1 . . . . . . 1 . . . . . . . . . . 1 1 1 1 1 1 1 1 1 1 . . 1 . . . . . . . . . . . . Largest Inventory Capacity 30 | 5 20 20 20 20 20 20 20 20 20 20 20 25 25 25 25 25 25 25 30 30 30 30 30 30 30 30 30 30 30 30 30 30 30 30 30 30 30 30 30 30 30 30 30 30 Average Capacity 25 | 5 10 20 20 20 20 20 20 20 20 20 20 22 25 25 25 25 25 25 27 30 30 30 30 30 30 30 30 30 30 30 30 30 30 30 30 30 30 30 30 30 30 30 30 22 Most Carried 30 | 1 7 11 20 20 20 20 20 20 20 18 20 23 25 25 25 25 25 25 30 30 30 29 30 30 29 30 30 30 30 30 29 29 30 30 30 30 30 30 30 30 29 30 30 30 Average Carried 23 | . 5 9 15 19 19 18 19 19 19 17 18 20 24 24 24 24 24 24 27 29 29 28 29 29 28 26 29 29 29 23 27 28 29 29 28 29 29 29 29 29 27 28 29 15 Final Capacity 30 | 5 20 20 20 20 20 20 20 20 20 20 20 25 25 25 25 25 25 25 30 30 30 30 30 30 30 30 30 30 30 30 30 30 30 30 30 30 30 30 30 30 30 30 30 30 Final Carried 30 | 1 7 11 20 20 20 20 20 19 19 15 20 23 25 25 25 24 25 25 30 29 29 27 30 27 29 30 28 29 30 24 29 29 30 30 30 30 30 29 28 30 27 30 30 7 Class Distribution -------------------- 63% | Botlord-Mutant 20% | Bothacker-Mutant 7% | Mutant 4% | Commander-Mutant 3% | Scavenger-Mutant Dominant Class ---------------- Mutant | -10/Materials Mutant | -10/Mines Mutant | -9/Materials Scavenger-Mutant | -9/Storage Mutant | -9/Garrison Bothacker-Mutant | -8/Materials Bothacker-Mutant | -8/Garrison Bothacker-Mutant | -8/Materials Bothacker-Mutant | -8/Garrison Bothacker-Mutant | -7/Factory Bothacker-Mutant | -7/Waste Bothacker-Mutant | -7/Factory Botlord-Mutant | -7/Garrison Botlord-Mutant | -6/Factory Commander-Mutant | -6/Garrison Botlord-Mutant | -5/Factory Botlord-Mutant | -5/Garrison Botlord-Mutant | -5/Factory Botlord-Mutant | -5/Garrison Botlord-Mutant | -5/Factory Botlord-Mutant | -5/Garrison Commander-Mutant | -5/Factory Commander-Mutant | -5/Garrison Botlord-Mutant | -4/Factory Botlord-Mutant | -4/Waste Botlord-Mutant | -4/Factory Botlord-Mutant | -4/Garrison Botlord-Mutant | -4/Factory Botlord-Mutant | -4/Garrison Botlord-Mutant | -3/Research Botlord-Mutant | -3/Garrison Botlord-Mutant | -3/Quarantine Botlord-Mutant | -3/Garrison Botlord-Mutant | -2/Research Botlord-Mutant | -2/Garrison Botlord-Mutant | -2/Research Botlord-Mutant | -2/Garrison Botlord-Mutant | -2/Research Botlord-Mutant | -2/Testing Botlord-Mutant | -2/Garrison Botlord-Mutant | -1/Access Botlord-Mutant | -1/Garrison Botlord-Mutant | -1/Access Botlord-Mutant | -1/Command Resources | -11 -10 -10 -9 -9 -9 -8 -8 -8 -8 -7 -7 -7 -7 -6 -6 -5 -5 -5 -5 -5 -5 -5 -5 -4 -4 -4 -4 -4 -4 -3 -3 -3 -3 -2 -2 -2 -2 -2 -2 -2 -1 -1 -1 -1 ----------- Run | Yrd Mat Min Mat Sto Gar Mat Gar Mat Gar Fac Was Fac Gar Fac Gar Fac Gar Fac Gar Fac Gar Fac Gar Fac Was Fac Gar Fac Gar Res Gar Qua Gar Res Gar Res Gar Res Tes Gar Acc Gar Acc Com Matter Collected 18151 | 112 343 17 96 330 229 597 770 1312 696 469 741 156 485 293 210 259 560 175 359 251 497 52 275 145 152 529 392 220 326 266 186 160 410 349 298 337 435 216 639 280 105 285 548 2589 Remotely . | . . . . . . . . . . . . . . . . . . . . . . . . . . . . . . . . . . . . . . . . . . . . . Salvage Created 19217 | . 594 58 313 928 472 815 847 1383 583 494 1665 . 459 71 236 338 976 74 197 337 259 . 311 . 236 863 765 . 261 267 33 . 1166 486 591 277 166 138 188 189 . 188 67 1926 Parts 903 | . 39 8 19 68 29 42 59 93 38 18 15 . 28 5 14 10 33 3 10 17 18 . 9 . . 43 21 . 12 8 3 . 57 17 30 10 6 7 8 6 . 7 4 89 Haulers Intercepted 18 | . 2 . 4 4 . 3 . 4 . . . . . . . . . . . 1 . . . . . . . . . . . . . . . . . . . . . . . . Recyclers Shooed 14 | . 2 1 2 4 . 1 . . . . . . . . . . . . . . . . . . . 2 . . . . . . . . . . . 1 . . . . 1 . Parts Field Recycled . | . . . . . . . . . . . . . . . . . . . . . . . . . . . . . . . . . . . . . . . . . . . . . Retrieved Matter . | . . . . . . . . . . . . . . . . . . . . . . . . . . . . . . . . . . . . . . . . . . . . . Parts Self-Destructed . | . . . . . . . . . . . . . . . . . . . . . . . . . . . . . . . . . . . . . . . . . . . . . Prevented . | . . . . . . . . . . . . . . . . . . . . . . . . . . . . . . . . . . . . . . . . . . . . . Kills | -11 -10 -10 -9 -9 -9 -8 -8 -8 -8 -7 -7 -7 -7 -6 -6 -5 -5 -5 -5 -5 -5 -5 -5 -4 -4 -4 -4 -4 -4 -3 -3 -3 -3 -2 -2 -2 -2 -2 -2 -2 -1 -1 -1 -1 ------- Run | Yrd Mat Min Mat Sto Gar Mat Gar Mat Gar Fac Was Fac Gar Fac Gar Fac Gar Fac Gar Fac Gar Fac Gar Fac Was Fac Gar Fac Gar Res Gar Qua Gar Res Gar Res Gar Res Tes Gar Acc Gar Acc Com Combat Hostiles Destroyed 336 | . 16 3 6 24 19 11 22 20 16 9 6 . 14 2 5 8 5 1 3 4 6 . 1 . 1 16 7 . 7 3 . . 15 6 13 2 1 2 1 3 . 1 1 56 Melee 1 | . . . . . . . . . . . 1 . . . . . . . . . . . . . . . . . . . . . . . . . . . . . . . . . Guns 146 | . 12 3 6 18 19 11 16 20 12 9 5 . 2 2 . . . . . . . . . . . . 5 . . . . . . . . . . . . . . . . 6 Cannons 82 | . 4 . . . . . . . . . . . . . 5 2 4 1 3 3 5 . 1 . 1 10 2 . 4 2 . . 14 6 5 . 1 1 1 3 . 1 1 2 AOE 99 | . . . . 6 . . 6 . 4 . . . 12 . . 6 . . . . 1 . . . . 6 . . 3 . . . . . 7 . . . . . . . . 48 Classes Destroyed 25 | . 7 1 1 1 . 1 3 1 . . 2 . . . 1 1 . . . . 1 . . . . . . . . 1 . . 3 . . . . . 1 . . . . . Worker 8 | . 1 . . 2 . . . 2 . . . . 1 . . . . . . . . . . . . 1 . . . . . . . . . . . 1 . . . . . . Builder 6 | . . 2 . . . . . 2 . . . . . . . 1 . . . . . . . . . 1 . . . . . . . . . . . . . . . . . . Tunneler 4 | . 1 . . . . . . 2 . . . . 1 . . . . . . . . . . . . . . . . . . . . . . . . . . . . . . . Hauler 18 | . 2 . 4 4 . 3 . 4 . . . . . . . . . . . 1 . . . . . . . . . . . . . . . . . . . . . . . . Recycler 6 | . . . 1 1 . 1 . 1 . . . . . . . . . . . . . . . . . 2 . . . . . . . . . . . . . . . . . . Mechanic 1 | . . . . . . . . . . . . . . . . . . . . . . . . . . . . . . 1 . . . . . . . . . . . . . . Operator 5 | . 2 . . 2 . . . 1 . . . . . . . . . . . . . . . . . . . . . . . . . . . . . . . . . . . . Watcher 11 | . 2 . . 2 . 2 . 2 . . . . . . . . . . . . . . . . . 1 . . . . . . . . . . . . . . . . . 2 Swarmer 104 | . 6 3 4 6 6 2 7 3 5 . . . 12 1 1 . 2 . . . 1 . 1 . . 8 2 . 5 . 1 . 1 . 3 4 . . . . . . . 20 Cutter 12 | . . . . . . . . . . . . . . . . . . . . . 2 . . . . . . . . . . . 3 . 4 . . . . . . . . 3 Saboteur 5 | . . . . . . . . . . . . . . . 1 . . . . . . . . . . . . . . . . . . . . . . . . . . . . 4 Grunt 89 | . 10 . 2 7 5 2 6 4 6 6 . . 4 . . 1 . . 2 1 . . 1 . . . 3 . 1 3 . . 7 3 2 . 1 . . . . 1 . 11 Brawler 6 | . . . . . . . 1 1 . 1 . . . . . . 1 . . . . . . . . . 1 . . . . . . . . . . . . . . . . 1 Duelist 6 | . . . . . . . . 1 . 1 . . . . . . . . . . . . . . . 1 . . . . . . . . . . . . 1 . . . . 2 Protector 1 | . . . . . . . . . . . . . . . . 1 . . . . . . . . . . . . . . . . . . . . . . . . . . . . Researcher 1 | . . . . . . . . . . . . . . . . . . . . . . . . . . . . . . . . . . . . . . . 1 . . . . . Sentry 45 | . . . . 11 8 5 4 8 3 1 . . . . . . . 1 1 . 1 . . . . . . . . . . . . . . . 1 . . . . 1 . . Demolisher 2 | . . . . . . . . . . . . . . . . . . . . . . . . . . . . . . . . . . . . 1 . . . . . . . 1 Specialist 9 | . . . . . . . 1 . . . . . 1 . 3 3 . . . . . . . . . . . . . . . . . . . . . . . . . . . 1 Hunter 14 | . . . . . . 2 1 3 . . . . . . . 1 . . . 1 . . . . . . 1 . . . . . . . 2 . . . 1 . . . . 2 Programmer 55 | . . . . . . . 3 . 3 . . . . 1 . 2 3 . . 2 2 . . . . 7 . . 1 . . . 4 4 1 1 . 2 . 3 . . 1 15 Q-Series 1 | . . . . . . . . . . . . . . . . . . . . . . . . . . . . . . . . . 1 . . . . . . . . . . . Behemoth 1 | . . . . . . . . . . . . . . . . . . . . . . . . . . . . . . . . . 1 . . . . . . . . . . . Compactor 7 | . . . . . . . . . . . 6 . . . . . . . . . . . . . 1 . . . . . . . . . . . . . . . . . . . Executioner 1 | . . . . . . . . . . . . . . . . . . . . . . . . . . . . . . . . . 1 . . . . . . . . . . . Thug 1 | . . . . . . . . . . . . . 1 . . . . . . . . . . . . . . . . . . . . . . . . . . . . . . . Butcher 1 | . . . . . . . . . . . . . 1 . . . . . . . . . . . . . . . . . . . . . . . . . . . . . . . Martyr 1 | . . . . . . . . . . . 1 . . . . . . . . . . . . . . . . . . . . . . . . . . . . . . . . . Guerrilla 1 | . . . . . . . . . . . . . . . . . . . . . . . . . . . . . . . . . . . 1 . . . . . . . . . Best Kill Streak 50 | . 4 3 4 6 6 3 4 4 7 4 1 . 6 1 1 7 2 1 2 2 2 . 1 . 1 6 2 . 4 2 . . 7 3 7 1 1 2 1 2 . 1 1 50 Combat Bots Only 48 | . 4 3 4 6 6 3 4 3 7 4 1 . 6 1 1 6 2 1 2 2 2 . 1 . 1 6 2 . 4 2 . . 7 3 7 1 1 2 1 2 . 1 1 48 Max Kills in Single Turn 10 | . 2 1 1 3 2 1 3 2 2 1 1 . 4 1 1 5 1 1 1 1 1 . 1 . 1 5 1 . 2 1 1 . 1 1 4 1 1 1 1 1 . 1 1 10 Gunslinging 1 | . 1 . . . 1 . . 1 . . . . . . . . . . . . . . . . . . . . . . . . . . . . . . . . . . . . Exploded 10 | . . . . 3 . . 3 . 2 . . . 3 . . 4 . . . . 1 . . . . 5 . . 2 . . . . . 4 . . . . . . . . 10 Melee 1 | . . . . . . . . . . . 1 . . . . . . . . . . . . . . . . . . . . . . . . . . . . . . . . . Uniques/NPCs Destroyed 2 | . . . . . . . . . . . . . . . . . . . . . . . . . . . . . . . . . . . . . . . . . . . . 2 MAIN.C Shell (-1/Command) MAIN.C (-1/Command) Combat | -11 -10 -10 -9 -9 -9 -8 -8 -8 -8 -7 -7 -7 -7 -6 -6 -5 -5 -5 -5 -5 -5 -5 -5 -4 -4 -4 -4 -4 -4 -3 -3 -3 -3 -2 -2 -2 -2 -2 -2 -2 -1 -1 -1 -1 -------- Run | Yrd Mat Min Mat Sto Gar Mat Gar Mat Gar Fac Was Fac Gar Fac Gar Fac Gar Fac Gar Fac Gar Fac Gar Fac Was Fac Gar Fac Gar Res Gar Qua Gar Res Gar Res Gar Res Tes Gar Acc Gar Acc Com Hostile Shots Fired 2421 | . 37 6 13 61 73 114 116 94 101 54 . . 59 4 32 97 37 10 29 9 22 . 21 20 . 262 55 21 60 30 35 18 91 29 74 16 20 32 38 50 5 23 39 514 Missed 649 | . 12 . 4 22 21 19 29 24 20 17 . . 22 1 13 31 11 4 7 2 5 . 9 6 . 74 16 8 15 9 12 11 15 8 23 4 6 4 16 8 2 8 15 116 Damage Taken 33109 | . 304 99 155 515 703 1080 1127 874 774 569 . . 598 58 329 1192 346 296 519 327 261 . 204 467 47 2369 653 695 1022 309 360 168 1062 286 742 244 238 423 387 601 121 424 1099 11062 Core 2575 | . 55 47 20 37 134 96 86 62 59 . . . 109 12 19 36 16 25 63 38 18 . . 69 . 336 22 93 125 10 39 11 60 73 . . 30 69 72 25 . . 38 571 Absorbed by Shields 11941 | . . . . . 21 326 156 112 294 . . . . 15 . 37 255 117 . . 154 . 104 63 . 751 188 . . 323 380 173 1093 295 448 250 248 437 403 409 . 78 . 4811 Reduced by Siege Mode 875 | . . . . . . . . . . . . . . . 40 39 19 . . 12 . . . . . 76 . . . 8 . . 116 . 19 . . 24 . 21 . . . 501 Ignored by Resistances 339 | . . . . . 8 102 . 153 76 . . . . . . . . . . . . . . . . . . . . . . . . . . . . . . . . . . . Regen/Repaired (Parts) 1767 | . 77 . . . . . . 428 . . 27 20 48 . 5 465 . . . . . . . . . . . . . . . . . . . 96 . 336 170 . . . 95 . Core Remaining (%) 71 | 100 . 59 . . 52 . . . 44 . . . 84 . 96 . . . . . . . 80 . . . . . 43 . . . 90 . . . . . . 81 . . . 61 Volleys Fired 2425 | . 39 4 23 57 41 64 80 134 62 48 125 4 28 11 47 39 95 19 84 38 52 . 73 18 28 79 133 21 58 41 42 13 141 55 54 45 72 19 75 52 10 49 55 198 Largest 2 | . 2 2 2 2 2 2 2 2 2 2 2 1 2 2 1 1 2 1 1 2 2 . 1 1 1 1 1 2 1 1 1 1 1 1 2 1 1 1 1 1 1 1 1 2 Hottest 200 | . 130 130 130 130 130 50 90 50 50 50 50 5 61 50 90 90 150 90 90 150 150 . 120 7 120 120 120 166 120 120 120 10 120 120 180 120 120 120 120 120 120 120 130 200 Shots Fired 3058 | . 79 9 46 111 81 128 146 263 103 79 152 4 40 15 50 39 102 19 84 42 56 . 75 18 29 78 133 27 61 41 42 13 142 56 55 45 73 20 77 51 10 49 55 260 Gun 1406 | . 62 9 46 107 80 128 140 257 86 66 146 . 23 12 . . . . . . . . . . . 19 51 . . . . . . . . . . . . . . . . 174 Cannon 972 | . 17 . . . . . . . . . . . . . 34 21 86 5 57 25 32 . 54 . 24 34 61 20 43 18 16 . 117 33 34 29 47 12 35 40 1 34 11 32 Launcher 49 | . . . . 4 . . 6 1 5 . . . 9 . . 5 . . . . . . . . . 2 . 2 3 . . . . . 2 . . . . . . . . 10 Special 631 | . . . . . 1 . . 5 12 13 6 4 8 3 16 13 16 14 27 17 24 . 21 18 5 23 21 5 15 23 26 13 25 23 19 16 26 8 42 11 9 15 44 44 Kinetic 1043 | . 17 . . . . 128 122 257 86 66 146 . 23 12 . . 7 . . 3 2 . . . . . . . . . . . . . . . . . . . . . . 174 Thermal 1319 | . 45 9 46 107 81 . 18 . . . . . . . 34 21 79 5 57 22 30 . 54 . 24 53 112 20 43 18 16 . 117 33 34 29 47 12 35 40 1 34 11 32 Explosive 44 | . . . . 4 . . 6 1 5 . . . 9 . . 5 . . . . . . . . . 2 . . . . . . . . 2 . . . . . . . . 10 Electromagnetic 22 | . 17 . . . . . . . . . . . . . . . . . . . . . . . . . . 2 3 . . . . . . . . . . . . . . . Robot Hit Streak 49 | . 17 5 13 21 25 20 25 13 9 15 20 24 25 4 11 13 28 8 10 8 17 . 14 15 9 10 22 3 9 10 8 10 21 10 12 12 17 9 13 16 5 8 9 49 Robot Miss Streak 8 | . 8 3 7 5 8 2 3 7 3 2 3 . 3 4 2 1 2 3 4 2 3 . 2 1 2 3 5 3 6 2 3 1 5 2 2 5 1 1 2 3 2 3 3 5 Penetration Max 1 | . . . . . . . . . . . . . . . . . . . . . . . . . . . . . . . . . . . . . . . . . . . . 1 Secondary Targets 15 | . 1 . . . 4 3 3 1 3 . . . . . . . . . . . . . . . . . . . . . . . . . . . . . . . . . . . Max Gunslinging Chain 1 | . 1 . . . 1 1 1 1 1 . . . . . . . . . . . . . . . . . . . . . . . . . . . . . . . . . . . Capacitor 641 | . . . . . . . . . . . . . . . . . . . . . . . . . 17 25 110 19 43 18 16 . 117 33 33 29 47 12 35 40 1 34 11 1 Shots Hit Robots 2062 | . 61 9 40 97 62 104 83 156 60 57 179 4 24 9 29 29 73 12 39 26 27 . 27 15 23 57 76 13 24 29 19 11 100 35 33 28 29 14 42 27 7 24 30 219 Core Hits 1063 | . 72 10 45 149 82 36 38 56 28 21 25 . 41 2 8 33 22 1 6 5 6 . 3 . 2 30 19 8 6 6 1 . 19 6 16 6 6 1 5 2 . 3 2 236 Critical Kills 17 | . . . . . . . 1 . . . . . . . . . 5 . . . . . 2 . . . 2 . . 1 . . 2 . 1 2 . 1 . . . . . . Critical Parts Destroyed 6 | . . . . . . . 1 1 1 . . . . . . . . . . . . . . . . . . . . . . . . . . . . . . . . . . 3 Critical Strikes 35 | . 1 . . . . . 2 1 1 . 7 . . . . . 5 . . . . . 2 . . . 4 . . 1 . . 2 . 1 2 . 1 . . . . . 5 Burn 2 | . . . . . . . . . . . . . . . . . . . . . . . . . . . 2 . . . . . . . . . . . . . . . . . Meltdown 16 | . . . . . . . . . . . . . . . . . 5 . . . . . 2 . . . 2 . . 1 . . 2 . 1 2 . 1 . . . . . . Destroy 10 | . . . . . . . 2 1 1 . 1 . . . . . . . . . . . . . . . . . . . . . . . . . . . . . . . . 5 Corrupt 1 | . 1 . . . . . . . . . . . . . . . . . . . . . . . . . . . . . . . . . . . . . . . . . . . Sever 6 | . . . . . . . . . . . 6 . . . . . . . . . . . . . . . . . . . . . . . . . . . . . . . . . Melee Attacks 104 | . . . . . . 6 3 1 10 . 61 1 5 . 1 . 15 . . . . . . . . . . . . . . . . . . . . . . . . . . 1 Impact 33 | . . . . . . . . 1 10 . . 1 5 . 1 . 15 . . . . . . . . . . . . . . . . . . . . . . . . . . . Slashing 61 | . . . . . . . . . . . 61 . . . . . . . . . . . . . . . . . . . . . . . . . . . . . . . . . Piercing . | . . . . . . . . . . . . . . . . . . . . . . . . . . . . . . . . . . . . . . . . . . . . . Sneak Attacks 63 | . . . . . . 4 . . . . 59 . . . . . . . . . . . . . . . . . . . . . . . . . . . . . . . . . Combat Hostiles 55 | . . . . . . . . . . . 55 . . . . . . . . . . . . . . . . . . . . . . . . . . . . . . . . . Follow-up Attacks . | . . . . . . . . . . . . . . . . . . . . . . . . . . . . . . . . . . . . . . . . . . . . . Damage Inflicted 64957 | . 877 124 542 2015 957 1491 2102 2790 1112 837 5126 . 1928 141 509 1968 2074 76 810 416 434 . 656 . 882 2034 2096 742 815 568 45 . 3800 825 1498 968 319 550 526 1002 . 605 139 20558 Guns 21339 | . 710 108 532 1510 936 1469 1460 2717 923 837 2193 . 261 141 . . . . . . . . . . . 316 699 . . . . . . . . . . . . . . . . 6527 Cannons 21231 | . 147 . . . . . . . . . . . . . 509 481 2074 76 810 416 434 . 656 . 882 1250 1367 453 599 551 45 . 3800 825 850 937 296 455 431 990 . 605 50 1242 Explosions 18642 | . . . . 442 . . 642 39 187 . . . 1667 . . 1487 . . . . . . . . . 455 . 289 204 . . . . . 648 . . . . . . . . 12582 Melee 2630 | . . . . . . . . . . . 2630 . . . . . . . . . . . . . . . . . . . . . . . . . . . . . . . . . Ramming 1115 | . 20 16 10 63 21 22 . 34 2 . 303 . . . . . . . . . . . . . . 13 30 . 12 17 . . . . . 31 23 95 95 12 . . 89 207 Kinetic 17031 | . 147 . . . . 1469 1405 2717 923 837 2193 . 261 141 . . 272 . . 97 42 . . . . . . . . . . . . . . . . . . . . . . 6527 Thermal 25926 | . 506 108 532 1510 936 . 55 . . . . . . . 509 481 1802 76 810 319 392 . 656 . 882 1566 2066 453 599 551 45 . 3800 825 850 937 296 455 431 990 . 605 50 1833 Explosive 17558 | . . . . 442 . . 642 39 187 . . . 1667 . . 1487 . . . . . . . . . 455 . . . . . . . . 648 . . . . . . . . 11991 Electromagnetic 697 | . 204 . . . . . . . . . . . . . . . . . . . . . . . . . . 289 204 . . . . . . . . . . . . . . . Impact . | . . . . . . . . . . . . . . . . . . . . . . . . . . . . . . . . . . . . . . . . . . . . . Slashing 2630 | . . . . . . . . . . . 2630 . . . . . . . . . . . . . . . . . . . . . . . . . . . . . . . . . Piercing . | . . . . . . . . . . . . . . . . . . . . . . . . . . . . . . . . . . . . . . . . . . . . . Highest Corruption 46 | . 2 2 . 7 7 . 2 2 4 4 4 7 7 2 2 4 5 5 5 7 8 8 8 . 7 12 13 13 21 . . . 3 1 1 3 3 8 8 9 . . 3 46 Average Corruption 7 | . 2 2 . 5 7 . 1 2 3 4 4 6 7 1 2 3 4 5 5 5 7 8 8 . 7 9 12 13 17 . . . 1 1 1 1 3 4 6 6 . . 2 28 Corruption Purged 56 | . . . . . . . . . . . . . . . . . . . . . . . . . . . . . . . . . . . . . . . 7 . . . 3 46 Corruption Blocked . | . . . . . . . . . . . . . . . . . . . . . . . . . . . . . . . . . . . . . . . . . . . . . Effects 1117 | . 14 12 . 29 31 . 5 46 29 . 43 28 38 9 21 9 44 13 35 47 53 9 55 . 18 45 68 36 65 . . . 11 1 13 11 31 16 43 31 . . 13 145 Message Errors 272 | . 1 . . 9 6 . 3 8 12 . 14 5 9 1 6 4 7 3 5 16 14 1 16 . 4 9 20 6 16 . . . 4 . 1 3 8 4 11 4 . . 4 38 Matter Fused 264 | . 2 2 . 8 12 . 2 14 5 . 9 9 10 3 6 1 10 3 10 7 10 2 11 . 4 14 15 10 16 . . . 3 . 4 3 9 5 11 8 . . 1 25 Heat Flow Errors 126 | . 4 5 . 5 3 . . 4 4 . 4 1 2 1 2 2 9 1 7 6 7 1 7 . 3 1 7 4 6 . . . . . 3 . 4 1 2 3 . . 3 14 Energy Discharges 138 | . 3 2 . 2 4 . . 9 2 . 7 8 4 2 2 1 2 1 5 4 7 1 9 . 2 9 9 1 6 . . . 1 . 1 . 3 2 7 4 . . . 18 Parts Rejected 13 | . . . . . . . . 1 . . 2 . 1 . . . . . 1 . . . . . 1 1 3 . . . . . . . . . . . 1 1 . . . 1 Parts Fused 17 | . . . . 1 . . . 1 . . 1 . . . . 1 1 1 . 1 2 . . . 1 . 1 1 2 . . . . . . . . . . 2 . . . 1 Data Loss (minor) 132 | . 1 . . 2 4 . . 3 4 . 2 3 5 . 2 . 7 3 5 6 6 3 6 . 1 3 5 5 6 . . . 1 . 4 2 2 3 9 5 . . 3 21 Data Loss (major) 54 | . . 1 . . . . . . . . 2 2 4 1 . . 6 1 2 3 2 1 2 . 1 2 2 3 3 . . . 1 . . 1 1 . . 3 . . 2 8 Misfires 50 | . 1 1 . 1 . . . 3 . . 1 . 3 1 3 . . . . 1 3 . 3 . 1 2 2 5 5 . . . 1 1 . . 2 1 2 . . . . 7 Alerts 27 | . 2 1 . 1 2 . . 1 2 . 1 . . . . . 2 . . 3 1 . . . . 1 2 . 3 . . . . . . 2 1 . . . . . . 2 Misdirections 1 | . . . . . . . . . . . . . . . . . . . . . . . . . . . . . . . . . . . . . . . . . . . . 1 Weapon Failures 23 | . . . . . . . . 2 . . . . . . . . . . . . 1 . 1 . . 3 2 1 2 . . . . . . . 1 . . 1 . . . 9 Overload Shots . | . . . . . . . . . . . . . . . . . . . . . . . . . . . . . . . . . . . . . . . . . . . . . Overflow Damage 1429 | . . . . 3 . . . . 10 . 104 . 11 . 14 3 12 3 16 2 . . 5 . . 31 85 10 178 6 . . 47 89 7 156 . 22 15 152 . . . 448 Projectiles 823 | . . . . . . . . . . . . . . . 14 3 12 3 16 2 . . 5 . . 31 85 10 176 6 . . 47 89 . 156 . 1 15 152 . . . . Explosions 479 | . . . . 3 . . . . 10 . . . 11 . . . . . . . . . . . . . . . . . . . . . 7 . . . . . . . . 448 Melee 127 | . . . . . . . . . . . 104 . . . . . . . . . . . . . . . . . 2 . . . . . . . . 21 . . . . . . Knockbacks 7 | . 1 . . . . . . . . . . . . . . . . . . . . . . . . . . . . . . . . . . . . 1 1 . . . 1 3 Impact 6 | . . . . . . . . . . . . . . . . . . . . . . . . . . . . . . . . . . . . . . 1 1 . . . 1 3 Kinetic 1 | . 1 . . . . . . . . . . . . . . . . . . . . . . . . . . . . . . . . . . . . . . . . . . . Secondary . | . . . . . . . . . . . . . . . . . . . . . . . . . . . . . . . . . . . . . . . . . . . . . Self-Inflicted Damage 620 | . . . . 18 . . 79 . . . . . 51 . . . . . . . . . . . . 5 . . . . . . . . 78 . . . . . . . . 389 Shots 14 | . . . . 1 . . 4 . . . . . 1 . . . . . . . . . . . . 1 . . . . . . . . 1 . . . . . . . . 6 Rammed 131 | . 6 2 2 8 3 5 . 6 1 . 47 . . . . . . . . . . . . . . 2 3 . 1 1 . . . . . 2 1 4 8 2 . . 6 21 Targets Rammed 135 | . 6 3 2 8 3 5 . 7 1 . 47 . . . . . . . . . . . . . . 2 3 . 1 1 . . . . . 2 1 5 9 2 . . 6 21 Kicked . | . . . . . . . . . . . . . . . . . . . . . . . . . . . . . . . . . . . . . . . . . . . . . Crushed 4 | . . 1 . . . . . 1 . . . . . . . . . . . . . . . . . . . . . . . . . . . . . 1 1 . . . . . Highest Temperature 477 | . 256 247 81 234 226 312 213 286 214 90 198 267 205 143 392 200 239 183 240 230 223 155 211 . 253 244 367 315 461 169 98 . 196 192 180 340 358 324 477 378 61 187 229 300 Average Temperature 79 | . 65 95 26 38 56 98 68 85 64 26 26 143 61 38 88 107 89 96 95 116 73 101 29 . 93 37 107 104 95 80 49 . 111 99 84 118 109 135 120 106 43 80 81 92 Received Heat Transfer 3862 | . 126 . 60 189 202 410 292 166 261 186 . . 84 . . 204 67 27 72 18 32 . 73 30 . 459 141 39 66 17 20 9 100 12 58 4 24 36 24 13 9 22 18 292 Effects 18 | . . . . . . 4 . 2 . . . . . . 1 . . . . . . . . . 1 . 2 . . . . . . . . 1 2 3 1 1 . . . . Shutdowns 4 | . . . . . . 1 . . . . . . . . . . . . . . . . . . . . . . . . . . . . . 1 1 . 1 . . . . . Energy Bleed 5 | . . . . . . 1 . 2 . . . . . . 1 . . . . . . . . . . . . . . . . . . . . . 1 . . . . . . . Interference 8 | . . . . . . 2 . . . . . . . . . . . . . . . . . . 1 . 2 . . . . . . . . . . 3 . . . . . . Short Circuit 1 | . . . . . . . . . . . . . . . . . . . . . . . . . . . . . . . . . . . . . . . . 1 . . . . Siege Activations 25 | . . . . . . . . . . . . . . . 3 1 2 . . 1 2 . . . . 4 1 . 1 1 . . 2 . 1 . . 1 . 1 . . 1 3 Total Turns 427 | . . . . . . . . . . . . . . . 18 15 23 . . 6 5 . . . . 65 4 . 5 10 . . 71 . 7 . . 16 . 17 . . 1 164 Longest Duration 92 | . . . . . . . . . . . . . . . 7 15 16 . . 6 4 . . . . 47 4 . 5 10 . . 70 . 7 . . 16 . 17 . . 1 92 Robots Corrupted . | . . . . . . . . . . . . . . . . . . . . . . . . . . . . . . . . . . . . . . . . . . . . . Combat Hostiles . | . . . . . . . . . . . . . . . . . . . . . . . . . . . . . . . . . . . . . . . . . . . . . Parts Fried 2 | . . . . . . . . . . . . . . . . . . . . . . . . . . . . . 1 . . . . . 1 . . . . . . . . . Impact Corruptions 3 | . . . . 1 . . . . . . . . . . . . . . . . . . . . . . . . 1 . . . . . . . . 1 . . . . . . Robots Melted 18 | . . . . . . . . . . . . . . . . . 5 . . 1 . . 2 . . . 2 . . 1 . . 2 . 1 3 . 1 . . . . . . Combat Hostiles 8 | . . . . . . . . . . . . . . . . . 1 . . 1 . . . . . . . . . 1 . . 1 . 1 2 . 1 . . . . . . Parts Melted 68 | . . . . . . 1 . . . . . . . . 3 1 10 . 1 1 2 . 3 . . 7 8 . 1 1 . . 5 6 5 6 1 2 . 3 . . . 1 Heat Transferred 24497 | . 635 130 665 1875 1156 . 74 . . . . . . . 800 676 2675 74 851 333 370 . 422 . 777 1480 2368 370 444 481 37 . 3089 592 703 740 259 333 346 665 . 518 37 522 Parts Sabotaged . | . . . . . . . . . . . . . . . . . . . . . . . . . . . . . . . . . . . . . . . . . . . . . Parts Stolen . | . . . . . . . . . . . . . . . . . . . . . . . . . . . . . . . . . . . . . . . . . . . . . Parts Stripped . | . . . . . . . . . . . . . . . . . . . . . . . . . . . . . . . . . . . . . . . . . . . . . Power Chain Reactions . | . . . . . . . . . . . . . . . . . . . . . . . . . . . . . . . . . . . . . . . . . . . . . Alert | -11 -10 -10 -9 -9 -9 -8 -8 -8 -8 -7 -7 -7 -7 -6 -6 -5 -5 -5 -5 -5 -5 -5 -5 -4 -4 -4 -4 -4 -4 -3 -3 -3 -3 -2 -2 -2 -2 -2 -2 -2 -1 -1 -1 -1 ------- Run | Yrd Mat Min Mat Sto Gar Mat Gar Mat Gar Fac Was Fac Gar Fac Gar Fac Gar Fac Gar Fac Gar Fac Gar Fac Was Fac Gar Fac Gar Res Gar Qua Gar Res Gar Res Gar Res Tes Gar Acc Gar Acc Com Peak Influence 1657 | . 313 142 303 386 793 762 784 510 680 387 28 169 924 606 1257 662 1106 1049 1289 901 1282 683 1657 1513 485 310 888 961 1360 1164 1503 1580 1493 952 648 509 1108 834 596 1003 706 482 178 361 Initial 942 | . . 67 . 21 156 386 32 382 10 357 28 . 49 485 319 659 35 580 394 676 305 672 478 869 479 67 175 466 602 765 495 845 942 839 108 365 381 623 468 432 601 397 178 . Average 503 | . 157 33 74 191 513 318 410 141 335 218 6 25 677 360 952 339 647 726 890 397 1005 681 1255 1146 347 162 599 674 1021 905 1070 1219 1224 687 467 420 845 681 419 750 606 277 29 60 Maximum Alert Level 5 | . 1 . 1 1 3 3 3 2 2 1 . . 3 2 4 2 4 3 4 3 4 2 5 4 2 1 3 3 4 4 4 4 4 3 2 2 4 3 2 3 3 2 . 1 Low Security (%) 35 | 100 87 100 94 46 3 27 31 71 12 38 100 100 16 6 . 34 20 . . 19 . . . . 1 51 2 . . . . . . 16 1 . . . 6 . . 16 100 95 Level 1 16 | . 12 . 5 53 18 36 15 24 63 61 . . . 52 8 25 9 . 1 39 1 . . . 49 48 8 . . . . . . 5 24 39 1 . 30 . . 70 . 4 Level 2 19 | . . . . . 64 34 34 3 23 . . . 6 41 10 40 8 47 20 25 14 100 14 . 49 . 66 52 9 16 21 . . . 73 60 14 62 62 44 97 13 . . Level 3 17 | . . . . . 12 1 17 . . . . . 76 . 39 . 53 52 51 14 32 . 4 37 . . 22 47 49 72 31 33 35 77 . . 77 37 . 55 2 . . . Level 4 10 | . . . . . . . . . . . . . . . 41 . 7 . 26 . 50 . 64 62 . . . . 40 10 47 66 64 . . . 6 . . . . . . . Level 5 . | . . . . . . . . . . . . . . . . . . . . . . . 15 . . . . . . . . . . . . . . . . . . . . . High Security . | . . . . . . . . . . . . . . . . . . . . . . . . . . . . . . . . . . . . . . . . . . . . . Max Security . | . . . . . . . . . . . . . . . . . . . . . . . . . . . . . . . . . . . . . . . . . . . . . Squads Dispatched 129 | . 4 . 1 9 . 4 . 3 . 5 . 2 . 4 . 5 . 6 . 7 . 1 . 3 . 4 . 8 . 3 . 11 . 6 . 2 . 6 14 . 5 . 10 6 Investigation 14 | . 2 . 1 . . . . . . 1 . 1 . . . 1 . 1 . . . . . . . . . 2 . . . 2 . 2 . . . 1 . . . . . . Extermination 33 | . . . . . . . . . . 1 . 1 . 1 . 1 . . . 2 . . . 1 . 2 . 2 . . . 1 . 2 . 1 . 3 4 . 1 . 5 5 Reinforcement 35 | . 2 . . 3 . 3 . 2 . 1 . . . . . 2 . 1 . 1 . . . . . 2 . 2 . 1 . 2 . 1 . . . 2 7 . . . 2 1 Assault 13 | . . . . . . . . . . . . . . . . 1 . 1 . 1 . 1 . 2 . . . 2 . 1 . . . 1 . 1 . . . . 1 . 1 . Garrison 34 | . . . . 6 . 1 . 1 . 2 . . . 3 . . . 3 . 3 . . . . . . . . . 1 . 6 . . . . . . 3 . 3 . 2 . Intercept . | . . . . . . . . . . . . . . . . . . . . . . . . . . . . . . . . . . . . . . . . . . . . . Searches Triggered . | . . . . . . . . . . . . . . . . . . . . . . . . . . . . . . . . . . . . . . . . . . . . . Construction Impeded 3 | . . . . . . . . . . . . . . . . . . . . . . . . . . . . 1 . . . . . . . . . . 1 . . . 1 . Haulers Reinforced 3 | . . . . . . . . . . . . . . . . 1 . . . . . . . . . . . . . 1 . . . . . . . . 1 . . . . . Active Scanning Responses . | . . . . . . . . . . . . . . . . . . . . . . . . . . . . . . . . . . . . . . . . . . . . . Cargo Convoy Interrupts 2 | . . . . . . . . . . . . . . . . 1 . . . . . . . . . 1 . . . . . . . . . . . . . . . . . . Alert ID Control Effect 138 | . . . . . . . . . . . . . . . . . . . . . . . . . . . . . . . . . . . . . . . . . . 17 50 71 Stealth | -11 -10 -10 -9 -9 -9 -8 -8 -8 -8 -7 -7 -7 -7 -6 -6 -5 -5 -5 -5 -5 -5 -5 -5 -4 -4 -4 -4 -4 -4 -3 -3 -3 -3 -2 -2 -2 -2 -2 -2 -2 -1 -1 -1 -1 --------- Run | Yrd Mat Min Mat Sto Gar Mat Gar Mat Gar Fac Was Fac Gar Fac Gar Fac Gar Fac Gar Fac Gar Fac Gar Fac Was Fac Gar Fac Gar Res Gar Qua Gar Res Gar Res Gar Res Tes Gar Acc Gar Acc Com Distress Signals 56 | . 4 . . 3 . 2 . 3 . 3 . . . . . 2 . 3 . 1 . . . 3 . 2 . . . 4 . . . 1 . 2 . 6 2 . . . 1 14 Communications Jammed 1069 | . . . . . . . . . . . . . . . . 181 . 11 . 16 . . . 268 . 98 . 1 . . . . . . . . . 210 58 . 54 . 3 169 Distress Signals 1065 | . . . . . . . . . . . . . . . . 181 . 11 . 16 . . . 268 . 98 . . . . . . . . . . . 210 57 . 52 . 3 169 Times Spotted 1383 | . 29 3 17 30 19 34 25 44 30 21 4 2 30 13 13 26 36 18 29 17 34 . 33 39 6 48 31 27 34 26 33 25 44 29 39 21 33 34 56 27 16 38 51 219 Peak Tracking Total 90 | . 4 2 6 6 4 5 5 3 6 5 2 2 10 3 2 11 10 5 3 2 3 1 5 10 2 14 3 6 5 6 4 5 12 7 7 5 3 7 7 4 4 5 6 90 Tactical Retreats 26 | . 2 . 1 4 3 2 . . 2 . . . . . . . . . . . . . . . . . . . 1 . . 1 1 . 1 . . . 2 . . . . 6 Traps | -11 -10 -10 -9 -9 -9 -8 -8 -8 -8 -7 -7 -7 -7 -6 -6 -5 -5 -5 -5 -5 -5 -5 -5 -4 -4 -4 -4 -4 -4 -3 -3 -3 -3 -2 -2 -2 -2 -2 -2 -2 -1 -1 -1 -1 ------- Run | Yrd Mat Min Mat Sto Gar Mat Gar Mat Gar Fac Was Fac Gar Fac Gar Fac Gar Fac Gar Fac Gar Fac Gar Fac Was Fac Gar Fac Gar Res Gar Qua Gar Res Gar Res Gar Res Tes Gar Acc Gar Acc Com Traps Triggered 68 | . 2 1 1 6 3 . 2 . 4 2 . 3 1 1 2 . . . . . 6 . 2 1 . 2 10 . 2 . 2 . 10 1 1 . 2 . . . . . . 1 Indirectly . | . . . . . . . . . . . . . . . . . . . . . . . . . . . . . . . . . . . . . . . . . . . . . Trap Hack Attempts 8 | . . . . . . . 8 . . . . . . . . . . . . . . . . . . . . . . . . . . . . . . . . . . . . . Triggered . | . . . . . . . . . . . . . . . . . . . . . . . . . . . . . . . . . . . . . . . . . . . . . Disarmed 1 | . . . . . . . 1 . . . . . . . . . . . . . . . . . . . . . . . . . . . . . . . . . . . . . Reprogrammed . | . . . . . . . . . . . . . . . . . . . . . . . . . . . . . . . . . . . . . . . . . . . . . Reused . | . . . . . . . . . . . . . . . . . . . . . . . . . . . . . . . . . . . . . . . . . . . . . Traps Extracted . | . . . . . . . . . . . . . . . . . . . . . . . . . . . . . . . . . . . . . . . . . . . . . Installed . | . . . . . . . . . . . . . . . . . . . . . . . . . . . . . . . . . . . . . . . . . . . . . Triggered 2 | . . . . . . . . . . . . . . . . . . . . . . . . . . 1 . . . . . . . . . . . . . . . . 1 . Machines | -11 -10 -10 -9 -9 -9 -8 -8 -8 -8 -7 -7 -7 -7 -6 -6 -5 -5 -5 -5 -5 -5 -5 -5 -4 -4 -4 -4 -4 -4 -3 -3 -3 -3 -2 -2 -2 -2 -2 -2 -2 -1 -1 -1 -1 ---------- Run | Yrd Mat Min Mat Sto Gar Mat Gar Mat Gar Fac Was Fac Gar Fac Gar Fac Gar Fac Gar Fac Gar Fac Gar Fac Was Fac Gar Fac Gar Res Gar Qua Gar Res Gar Res Gar Res Tes Gar Acc Gar Acc Com Machines Disabled 140 | . . . . 2 3 . 4 2 3 . . . 3 . 3 2 5 . 5 1 4 . 5 6 . 2 9 3 6 4 5 3 8 . 5 . 8 4 14 6 . 4 7 4 Max in Single Turn 1 | . . . . 1 1 . 1 1 1 . . . 1 . 1 . 1 . 1 . 1 . 1 . . . 1 . 1 . 1 . 1 . 1 . 1 . 1 1 . 1 1 1 Garrison Access 1 | . . . . . . . . . . . . . . . . . . . . . . . . . . . . . . . . . . . . . . . . . . . 1 . Garrison Relay 64 | . . . . . 3 . 1 . 3 . . . 3 . 3 . 6 . 4 . 3 . 4 . . . 4 . 4 . 3 . 3 . 4 . 6 . . 6 . 4 . . Machines Repaired . | . . . . . . . . . . . . . . . . . . . . . . . . . . . . . . . . . . . . . . . . . . . . . Machines Dismantled 4 | . . . . 2 2 . . . . . . . . . . . . . . . . . . . . . . . . . . . . . . . . . . . . . . . Machines Sabotaged . | . . . . . . . . . . . . . . . . . . . . . . . . . . . . . . . . . . . . . . . . . . . . . Overloaded Fab Kills . | . . . . . . . . . . . . . . . . . . . . . . . . . . . . . . . . . . . . . . . . . . . . . Hacking | -11 -10 -10 -9 -9 -9 -8 -8 -8 -8 -7 -7 -7 -7 -6 -6 -5 -5 -5 -5 -5 -5 -5 -5 -4 -4 -4 -4 -4 -4 -3 -3 -3 -3 -2 -2 -2 -2 -2 -2 -2 -1 -1 -1 -1 --------- Run | Yrd Mat Min Mat Sto Gar Mat Gar Mat Gar Fac Was Fac Gar Fac Gar Fac Gar Fac Gar Fac Gar Fac Gar Fac Was Fac Gar Fac Gar Res Gar Qua Gar Res Gar Res Gar Res Tes Gar Acc Gar Acc Com Machines Accessed 144 | . 9 1 10 9 2 7 2 12 2 1 . 6 2 7 1 5 2 1 3 5 2 2 1 5 . 5 2 2 2 1 2 4 2 4 2 3 2 1 7 1 1 2 . 4 Terminals 97 | . 6 . 6 8 2 5 2 7 2 . . 2 2 4 1 2 2 . 3 4 2 . 1 4 . 2 2 . 2 . 2 2 2 3 2 1 2 1 4 1 . 2 . 4 Fabricators 12 | . . . . . . . . . . 1 . 1 . 2 . 2 . . . . . 1 . 1 . 1 . 1 . . . . . . . 1 . . 1 . . . . . Repair Stations 7 | . 1 . 2 . . . . 2 . . . 1 . . . . . . . . . . . . . . . . . . . 1 . . . . . . . . . . . . Recycling Units 3 | . 2 . . . . . . 1 . . . . . . . . . . . . . . . . . . . . . . . . . . . . . . . . . . . . Scanalyzers 7 | . . . 2 . . 1 . 1 . . . 1 . . . . . . . . . . . . . 1 . . . . . . . . . . . . 1 . . . . . Garrison Access 17 | . . . . 1 . 1 . 1 . . . 1 . 1 . 1 . 1 . 1 . 1 . . . 1 . 1 . 1 . 1 . 1 . 1 . . 1 . 1 . . . Total Hacks 371 | . 23 1 28 22 4 19 4 38 2 3 . 13 7 28 2 15 5 3 9 9 4 9 2 14 . 16 5 12 5 2 5 8 4 9 4 6 3 3 11 1 2 4 . 7 Successful 203 | . 18 1 15 13 1 8 1 31 1 . . 9 1 21 1 10 1 3 4 4 1 9 1 1 . 4 1 9 2 2 1 3 3 3 1 5 . 2 6 1 2 1 . 2 Failed 166 | . 4 . 12 9 3 11 3 7 1 3 . 4 6 7 1 5 4 . 5 5 3 . 1 13 . 12 4 3 3 . 4 5 1 6 3 1 3 1 5 . . 3 . 5 Catastrophic 37 | . 2 . 2 1 2 4 . . 1 . . 1 . . . 3 1 . 1 2 . . . 4 . 3 . . 1 . 1 2 1 1 . . 1 . 2 . . . . 1 Database Lockouts 2 | . 1 . 1 . . . . . . . . . . . . . . . . . . . . . . . . . . . . . . . . . . . . . . . . . Manual 152 | . 13 . 15 10 . 13 1 23 . . . 3 1 6 . 8 . 1 2 1 . 1 1 11 . 7 1 6 . . . 3 1 5 . 1 . 3 8 . . . . 7 Terminals 240 | . 15 . 17 21 4 16 4 24 2 . . 4 7 12 2 7 5 . 9 7 4 . 2 12 . 5 5 . 5 . 5 4 4 6 4 2 3 3 8 1 . 4 . 7 Fabricators 45 | . . . . . . . . . . 3 . 1 . 14 . 5 . . . . . 7 . 2 . 1 . 9 . . . . . . . 2 . . 1 . . . . . Repair Stations 21 | . 6 . 6 . . . . 6 . . . 1 . . . . . . . . . . . . . . . . . . . 2 . . . . . . . . . . . . Recycling Units 7 | . 2 . . . . . . 5 . . . . . . . . . . . . . . . . . . . . . . . . . . . . . . . . . . . . Scanalyzers 19 | . . . 5 . . 1 . 2 . . . 4 . . . . . . . . . . . . . 6 . . . . . . . . . . . . 1 . . . . . Garrison Access 38 | . . . . 1 . 2 . 1 . . . 3 . 2 . 3 . 3 . 2 . 2 . . . 4 . 3 . 2 . 2 . 3 . 2 . . 1 . 2 . . . Terminal Hacks 56 | . 4 1 3 8 1 5 1 7 1 . . 1 1 4 1 1 1 . 3 2 1 . 1 . . . 1 . 2 . 1 . 2 . 1 . . . . 1 . 1 . . Robot Schematic 2 | . 1 . . . . . . . . . . . . 1 . . . . . . . . . . . . . . . . . . . . . . . . . . . . . . Robot Analysis 2 | . . . 2 . . . . . . . . . . . . . . . . . . . . . . . . . . . . . . . . . . . . . . . . . Prototype ID Bank 4 | . 1 . . 1 . 1 . 1 . . . . . . . . . . . . . . . . . . . . . . . . . . . . . . . . . . . . Open Door 6 | . . 1 . 3 . . . . . . . . . . . . . . 1 . . . . . . . . . . . 1 . . . . . . . . . . . . . Emergency Access Points 4 | . . . . . . . . . . . . . . . . . . . . . 1 . . . . . 1 . 1 . . . 1 . . . . . . . . . . . Terminal Index 1 | . . . . . . . . 1 . . . . . . . . . . . . . . . . . . . . . . . . . . . . . . . . . . . . Garrison Index 1 | . . . . . . . . 1 . . . . . . . . . . . . . . . . . . . . . . . . . . . . . . . . . . . . Alert Level 2 | . . . . 2 . . . . . . . . . . . . . . . . . . . . . . . . . . . . . . . . . . . . . . . . Unreport Threat 12 | . . . 1 2 . 2 . 2 . . . 1 . 2 . 1 . . . 1 . . . . . . . . . . . . . . . . . . . . . . . . Locate Traps 4 | . 1 . . . . 1 . 1 . . . . . 1 . . . . . . . . . . . . . . . . . . . . . . . . . . . . . . Hauler Manifests 2 | . . . . . . 1 . 1 . . . . . . . . . . . . . . . . . . . . . . . . . . . . . . . . . . . . Zone Layout 2 | . 1 . . . . . . . . . . . . . . . . . . 1 . . . . . . . . . . . . . . . . . . . . . . . . Garrison Registry 9 | . . . . . 1 . 1 . 1 . . . 1 . 1 . . . . . . . . . . . . . 1 . . . . . 1 . . . . 1 . 1 . . Patrol Navigation 2 | . . . . . . . . . . . . . . . . . . . 1 . . . . . . . . . . . . . 1 . . . . . . . . . . . Security Stations 3 | . . . . . . . . . . . . . . . . . 1 . 1 . . . 1 . . . . . . . . . . . . . . . . . . . . . Fabricator Hacks 31 | . . . . . . . . . . . . 1 . 12 . 5 . . . . . 6 . . . 1 . 4 . . . . . . . 2 . . . . . . . . Network Status 4 | . . . . . . . . . . . . 1 . 1 . 1 . . . . . . . . . 1 . . . . . . . . . . . . . . . . . . Load Schematic 13 | . . . . . . . . . . . . . . 6 . 1 . . . . . 3 . . . . . 2 . . . . . . . 1 . . . . . . . . Build 14 | . . . . . . . . . . . . . . 5 . 3 . . . . . 3 . . . . . 2 . . . . . . . 1 . . . . . . . . Repair Station Hacks 14 | . 6 . 2 . . . . 6 . . . . . . . . . . . . . . . . . . . . . . . . . . . . . . . . . . . . Scan Component 8 | . 3 . 2 . . . . 3 . . . . . . . . . . . . . . . . . . . . . . . . . . . . . . . . . . . . Repair 6 | . 3 . . . . . . 3 . . . . . . . . . . . . . . . . . . . . . . . . . . . . . . . . . . . . Recycling Unit Hacks 1 | . . . . . . . . 1 . . . . . . . . . . . . . . . . . . . . . . . . . . . . . . . . . . . . Retrieve Components 1 | . . . . . . . . 1 . . . . . . . . . . . . . . . . . . . . . . . . . . . . . . . . . . . . Scanalyzer 12 | . . . 4 . . 1 . 2 . . . 3 . . . . . . . . . . . . . 1 . . . . . . . . . . . . 1 . . . . . Insert Component 8 | . . . 2 . . 1 . 1 . . . 2 . . . . . . . . . . . . . 1 . . . . . . . . . . . . 1 . . . . . Analyze 4 | . . . 2 . . . . 1 . . . 1 . . . . . . . . . . . . . . . . . . . . . . . . . . . . . . . . Garrison Access Hacks 30 | . . . . 1 . 1 . 1 . . . 2 . 2 . 2 . 2 . 2 . 2 . . . 2 . 2 . 2 . 2 . 2 . 2 . . 1 . 2 . . . Unlock Access 17 | . . . . 1 . 1 . 1 . . . 1 . 1 . 1 . 1 . 1 . 1 . . . 1 . 1 . 1 . 1 . 1 . 1 . . 1 . 1 . . . Coupler Status 13 | . . . . . . . . . . . . 1 . 1 . 1 . 1 . 1 . 1 . . . 1 . 1 . 1 . 1 . 1 . 1 . . . . 1 . . . Unauthorized Hacks 59 | . 8 . 6 4 . 1 . 14 . . . 2 . 3 . 2 . 1 1 . . 1 . 1 . . . 3 . . . 1 1 1 . 1 . 2 4 . . . . 2 Terminals 49 | . 6 . 6 4 . 1 . 13 . . . 1 . 2 . 2 . . 1 . . . . 1 . . . . . . . 1 1 1 . 1 . 2 4 . . . . 2 Track 3 | . . . . . . . . 2 . . . . . . . . . . . . . . . . . . . . . . . . . . . . . . . . . . . 1 Assimilate 1 | . . . . . . 1 . . . . . . . . . . . . . . . . . . . . . . . . . . . . . . . . . . . . . . Botnet 14 | . 1 . 1 2 . . . 3 . . . . . 1 . 1 . . 1 . . . . . . . . . . . . . 1 . . . . 1 2 . . . . . Disrupt 1 | . . . . . . . . 1 . . . . . . . . . . . . . . . . . . . . . . . . . . . . . . . . . . . . Operators 12 | . . . . . . . . 1 . . . 1 . 1 . 1 . . . . . . . 1 . . . . . . . 1 . 1 . 1 . 1 2 . . . . 1 Skim 18 | . 5 . 5 2 . . . 6 . . . . . . . . . . . . . . . . . . . . . . . . . . . . . . . . . . . . Fabricators 4 | . . . . . . . . . . . . . . 1 . . . . . . . 1 . . . . . 2 . . . . . . . . . . . . . . . . Prioritize 3 | . . . . . . . . . . . . . . 1 . . . . . . . 1 . . . . . 1 . . . . . . . . . . . . . . . . Liberate 1 | . . . . . . . . . . . . . . . . . . . . . . . . . . . . 1 . . . . . . . . . . . . . . . . Repair Stations . | . . . . . . . . . . . . . . . . . . . . . . . . . . . . . . . . . . . . . . . . . . . . . Recycling Units 3 | . 2 . . . . . . 1 . . . . . . . . . . . . . . . . . . . . . . . . . . . . . . . . . . . . Reject 1 | . . . . . . . . 1 . . . . . . . . . . . . . . . . . . . . . . . . . . . . . . . . . . . . Tunnel 2 | . 2 . . . . . . . . . . . . . . . . . . . . . . . . . . . . . . . . . . . . . . . . . . . Scanalyzers . | . . . . . . . . . . . . . . . . . . . . . . . . . . . . . . . . . . . . . . . . . . . . . Garrison Access 3 | . . . . . . . . . . . . 1 . . . . . 1 . . . . . . . . . 1 . . . . . . . . . . . . . . . . Eject 3 | . . . . . . . . . . . . 1 . . . . . 1 . . . . . . . . . 1 . . . . . . . . . . . . . . . . Data Cores Recovered 3 | . . . 1 . . . . . . . . . . . . . . . . 1 . . . 1 . . . . . . . . . . . . . . . . . . . . Used . | . . . . . . . . . . . . . . . . . . . . . . . . . . . . . . . . . . . . . . . . . . . . . Hacking Detections 119 | . 7 . 10 6 2 7 2 9 2 1 . 4 2 5 1 4 2 1 3 4 2 1 1 5 . 3 2 2 2 1 2 4 1 4 2 1 2 1 4 . 1 2 . 4 Full Trace Events 9 | . . . 1 1 . . . . . . . . 1 . . 1 1 . . . . . . . . . . 1 . . 2 . . 1 . . . . . . . . . . Feedback Events . | . . . . . . . . . . . . . . . . . . . . . . . . . . . . . . . . . . . . . . . . . . . . . Feedback Blocked . | . . . . . . . . . . . . . . . . . . . . . . . . . . . . . . . . . . . . . . . . . . . . . Robot Schematics Acquired 8 | . 1 . . . . . . . . . . . . 1 . . . . . . . . . . . . . . . . . . . . . . . . 6 . . . . . Robots Built 20 | . . . . . . . . . . . . . . 10 . 1 . . . . . 5 . . . . . 3 . . . . . . . 1 . . . . . . . . Authchips 12 | . . . . . . . . . . . . . . 5 . 1 . . . . . 3 . . . . . 2 . . . . . . . 1 . . . . . . . . Time 608 | . . . . . . . . . . . . . . 335 . 40 . . . . . 86 . . . . . 107 . . . . . . . 40 . . . . . . . . Total Robot Build Rating 68 | . . . . . . . . . . . . . . 40 . 1 . . . . . 17 . . . . . 9 . . . . . . . 1 . . . . . . . . Part Schematics Acquired 24 | . . . 1 . . . . 1 . . . 1 . . . . . . . . . . . . . . . . . . . . . . . . . . 21 . . . . . Parts Built 2 | . . . . . . . . . . . . . . . . 2 . . . . . . . . . . . . . . . . . . . . . . . . . . . . Authchips . | . . . . . . . . . . . . . . . . . . . . . . . . . . . . . . . . . . . . . . . . . . . . . Time 192 | . . . . . . . . . . . . . . . . 192 . . . . . . . . . . . . . . . . . . . . . . . . . . . . Total Part Build Rating 12 | . . . . . . . . . . . . . . . . 12 . . . . . . . . . . . . . . . . . . . . . . . . . . . . Parts Repaired 6 | . 3 . . . . . . 3 . . . . . . . . . . . . . . . . . . . . . . . . . . . . . . . . . . . . Time 198 | . 90 . . . . . . 108 . . . . . . . . . . . . . . . . . . . . . . . . . . . . . . . . . . . . Parts Recycled . | . . . . . . . . . . . . . . . . . . . . . . . . . . . . . . . . . . . . . . . . . . . . . Recycled Matter . | . . . . . . . . . . . . . . . . . . . . . . . . . . . . . . . . . . . . . . . . . . . . . Retrieved Matter . | . . . . . . . . . . . . . . . . . . . . . . . . . . . . . . . . . . . . . . . . . . . . . Retrieved Components 10 | . . . . . . . . 10 . . . . . . . . . . . . . . . . . . . . . . . . . . . . . . . . . . . . Parts Scanalyzed 4 | . . . 1 . . . . 1 . . . 2 . . . . . . . . . . . . . . . . . . . . . . . . . . . . . . . . Part Schematics Acquired 3 | . . . 1 . . . . 1 . . . 1 . . . . . . . . . . . . . . . . . . . . . . . . . . . . . . . . Parts Damaged 1 | . . . . . . . . . . . . 1 . . . . . . . . . . . . . . . . . . . . . . . . . . . . . . . . Bothacking | -11 -10 -10 -9 -9 -9 -8 -8 -8 -8 -7 -7 -7 -7 -6 -6 -5 -5 -5 -5 -5 -5 -5 -5 -4 -4 -4 -4 -4 -4 -3 -3 -3 -3 -2 -2 -2 -2 -2 -2 -2 -1 -1 -1 -1 ------------ Run | Yrd Mat Min Mat Sto Gar Mat Gar Mat Gar Fac Was Fac Gar Fac Gar Fac Gar Fac Gar Fac Gar Fac Gar Fac Was Fac Gar Fac Gar Res Gar Qua Gar Res Gar Res Gar Res Tes Gar Acc Gar Acc Com Used RIF Installer 19 | . . . . . 1 . 1 . 1 . . . 1 . 1 . 1 . 1 . 2 . 1 . . . 1 . 1 . 2 . 1 . 1 . 1 . . 1 . 1 . . Coupler Efficiency 3 | . . . . . . . . . . . . . 1 . . . . . . . . . . . . . 1 . 1 . . . . . . . . . . . . . . . Hotswap 1 | . . . . . . . . . . . . . . . . . . . . . 1 . . . . . . . . . . . . . . . . . . . . . . . Command Fork 3 | . . . . . . . 1 . . . . . . . . . 1 . . . 1 . . . . . . . . . . . . . . . . . . . . . . . Threat Obfuscator 3 | . . . . . . . . . . . . . . . . . . . 1 . . . . . . . . . . . . . 1 . . . . . . 1 . . . . Signal Jammer 1 | . . . . . . . . . . . . . . . . . . . . . . . . . . . . . . . . . . . . . 1 . . . . . . . Robot Detection 1 | . . . . . . . . . 1 . . . . . . . . . . . . . . . . . . . . . . . . . . . . . . . . . . . Patrol Navigation 1 | . . . . . . . . . . . . . . . 1 . . . . . . . . . . . . . . . . . . . . . . . . . . . . . Alert ID Control 1 | . . . . . . . . . . . . . . . . . . . . . . . . . . . . . . . . . . . . . . . . . . 1 . . Structural Interface 1 | . . . . . . . . . . . . . . . . . . . . . . . . . . . . . . . 1 . . . . . . . . . . . . . Autooverride 1 | . . . . . . . . . . . . . . . . . . . . . . . . . . . . . . . 1 . . . . . . . . . . . . . Autoassimilate 1 | . . . . . . . . . . . . . . . . . . . . . . . 1 . . . . . . . . . . . . . . . . . . . . . Crosswire 1 | . . . . . . . . . . . . . . . . . . . . . . . . . . . . . . . . . . . 1 . . . . . . . . . Robots Hacked 521 | . . . . . . 4 3 2 8 6 5 2 7 2 2 6 13 7 12 7 9 . 8 8 4 11 11 4 6 11 19 9 16 11 14 15 26 14 35 17 9 30 29 119 Non-combat 47 | . . . . . . 2 . 2 . 1 . 2 . 1 . 4 . 2 . 2 . . . 2 . 4 1 . . 4 . . . 2 . 3 . 2 5 . 1 . 5 2 Combat 474 | . . . . . . 2 3 . 8 5 5 . 7 1 2 2 13 5 12 5 9 . 8 6 4 7 10 4 6 7 19 9 16 9 14 12 26 12 30 17 8 30 24 117 Autooverrided 66 | . . . . . . . . . . . . . . . . . . . . . . . . . . . . . . . 2 1 1 . . 4 4 3 6 1 . 9 2 33 Autoassimilated 137 | . . . . . . . . . . . . . . . . . . . . . . . . 1 . 2 3 . 3 2 3 . 4 . 4 1 12 6 4 9 3 8 5 67 Robot Hacks Applied 372 | . . . . . . 5 3 4 9 9 5 3 7 3 2 6 13 10 12 13 9 . 8 7 4 11 10 4 3 20 16 8 11 18 10 11 10 6 31 7 6 13 23 22 parse_system 8 | . . . . . . . . . . . . . . . . . . . . . . . . . . . . . . 2 2 . . . 1 . . . . . . . 1 2 no_distress 1 | . . . . . . . . . . . . . . . . . . . . . . . . . . 1 . . . . . . . . . . . . . . . . . . find_chute 2 | . . . . . . . . . . . . . . . . . . . . . . . . 2 . . . . . . . . . . . . . . . . . . . . find_fabricator 3 | . . . . . . . . . . . . . . . . . . . . . . . . . . 1 . . . 1 . . . . . . . 1 . . . . . . drop_inventory 6 | . . . . . . . . . . . . 1 . . . . . . . . . . . . . 1 . . . 1 . . . . . 1 . 1 . . . . 1 . find_recycling 1 | . . . . . . . . . . . . . . . . . . . . . . . . . . 1 . . . . . . . . . . . . . . . . . . find_station 1 | . . . . . . . . . . . . . . . . . . . . . . . . . . . . . . 1 . . . . . . . . . . . . . . purge_threat 37 | . . . . . . 1 . 2 . 2 . . . . . . . 3 . 6 . . . . . . 2 . . 7 . . . 6 . . . . 7 . . . 1 . find_terminals 1 | . . . . . . . . . . 1 . . . . . . . . . . . . . . . . . . . . . . . . . . . . . . . . . . block_reporting 2 | . . . . . . . . . . . . . . . . . . . . . . . . . . . . . . 1 . . . . . . . . . . . . . 1 map_route 7 | . . . . . . . . . . . . . . . . . . 1 . . . . . . . 1 . . . . . . . 1 . 1 . . 1 . 1 . 1 . disable_scanner 9 | . . . . . . . . . . . . . . . . . . . . . . . . . . . . . . . . . . . . . . . 9 . . . . . ignore_targets 9 | . . . . . . . . . . . 5 . . . . . . . . . . . . . 4 . . . . . . . . . . . . . . . . . . . find_garrison 6 | . . . . . . . . . . . . . . 1 . . . . . 1 . . . . . 1 . . . 1 . . . 1 . 1 . . . . . . . . spike_heat 1 | . . . . . . . . . . . . . . . . . . . . 1 . . . . . . . . . . . . . . . . . . . . . . . . amplify_resonance 11 | . . . . . . . . . 1 1 . . 3 . . 1 2 . . . 1 . . 1 . . . . . . . . . . . . . . . . . . . 1 wipe_record 2 | . . . . . . . 1 . . . . . . . . . 1 . . . . . . . . . . . . . . . . . . . . . . . . . . . disable_weapons 3 | . . . . . . . . . . . . . . . . . . 1 1 . . . . . . . . . . . . . . . . 1 . . . . . . . . overwrite_iff 29 | . . . . . . . 1 . 7 4 . . 1 . . 1 3 . 4 . 1 . 2 . . . 1 . . . . . 1 1 . . 1 . . . . . . 1 formatsys_low 24 | . . . . . . 2 . 2 . 1 . 2 . 1 . 1 . 1 . 2 . . . . . . 1 . . 3 . . . 1 . 1 . 1 2 . . . 2 1 formatsys_high 208 | . . . . . . 2 1 . 1 . . . 3 1 2 3 7 4 7 3 7 . 6 4 . 5 6 4 3 3 14 8 10 7 9 6 9 3 12 7 5 13 17 16 formatsys_deep 1 | . . . . . . . . . . . . . . . . . . . . . . . . . . . . . . . . . . 1 . . . . . . . . . . Relay Couplers Released 279 | . . . . . 10 . 4 . 11 . . 3 12 . 12 . 25 4 13 . 12 . 18 . . 3 17 4 17 3 12 . 11 . 15 . 25 . . 28 . 18 2 . Ejected 11 | . . . . . . . . . . . . 3 . . . . . 4 . . . . . . . . . 4 . . . . . . . . . . . . . . . . Machine Destruction 262 | . . . . . 10 . 4 . 11 . . . 12 . 12 . 25 . 13 . 12 . 18 . . . 17 . 17 . 12 . 11 . 15 . 25 . . 28 . 18 2 . Programmers 6 | . . . . . . . . . . . . . . . . . . . . . . . . . . 3 . . . 3 . . . . . . . . . . . . . . Attached 127 | . . . . . 1 2 1 1 3 3 1 . 3 . 3 1 7 4 6 3 5 . 3 1 . 4 3 1 4 2 1 2 6 1 5 1 11 . 2 7 . 11 4 14 Crosswired 30 | . . . . . . . . . . . . . . . . . . . . . . . . . . . . . . . . . . . 8 . 7 . . 5 . 8 2 . Fabnet Peak Effective % . | . . . . . . . . . . . . . . . . . . . . . . . . . . . . . . . . . . . . . . . . . . . . . Robots Rewired 53 | . . . . . . . . . . . . . 2 . 8 . . . 5 . 3 . 4 1 . . 7 . 1 . 2 . 2 . 3 . 11 . . 4 . . . . Allies Hacked 43 | . . . . . . . . . . . . 1 . . 3 2 1 . . . . . 1 2 . 1 1 . . . . . 1 2 . 2 . 2 5 4 2 . 2 11 Hacks Repelled 2 | . . . . . . . . . . . . . . 1 . . . . . . . . . 1 . . . . . . . . . . . . . . . . . . . . Allies | -11 -10 -10 -9 -9 -9 -8 -8 -8 -8 -7 -7 -7 -7 -6 -6 -5 -5 -5 -5 -5 -5 -5 -5 -4 -4 -4 -4 -4 -4 -3 -3 -3 -3 -2 -2 -2 -2 -2 -2 -2 -1 -1 -1 -1 -------- Run | Yrd Mat Min Mat Sto Gar Mat Gar Mat Gar Fac Was Fac Gar Fac Gar Fac Gar Fac Gar Fac Gar Fac Gar Fac Was Fac Gar Fac Gar Res Gar Qua Gar Res Gar Res Gar Res Tes Gar Acc Gar Acc Com Total Allies 734 | . . 3 . . . 5 2 2 8 6 19 4 8 15 12 9 16 7 23 6 18 5 18 8 . 12 23 10 10 13 26 16 26 20 24 19 47 15 35 25 10 42 36 131 Largest Group 44 | . . 3 3 1 . 3 3 2 3 3 19 18 10 21 30 32 10 11 10 12 21 26 30 27 5 4 19 23 13 9 15 16 16 10 18 29 44 44 22 30 33 36 34 27 Highest-Rated Group 2538 | . . 75 75 13 . 71 34 20 36 56 475 441 253 632 1097 1132 495 564 515 542 828 990 1468 1364 242 269 981 1099 657 583 1073 964 817 510 1000 1405 2493 2493 1404 1884 2096 2132 1886 2538 Highest-Rated Ally 219 | . . 31 31 13 . 29 15 10 16 24 36 36 43 37 99 115 115 99 148 144 140 140 148 148 50 119 116 95 116 116 116 116 99 69 148 148 148 148 152 96 89 89 219 219 Total Orders 131 | . . . . . . . 13 2 1 . . 1 5 2 5 3 2 . 9 3 6 5 3 3 . . 2 9 4 . 9 . 2 1 4 4 10 1 8 4 1 3 3 3 STAY 59 | . . . . . . . 6 1 1 . . . 2 . 2 . . . 3 1 3 1 2 2 . . 1 3 2 . 5 . 1 1 2 1 7 . 4 3 1 1 1 2 ROAM 8 | . . . . . . . . . . . . . . . . . . . 4 . . . . . . . . 2 . . 1 . . . . . 1 . . . . . . . FOLLOW 44 | . . . . . . . 7 . . . . . 2 . 2 . . . 2 2 3 2 1 1 . . 1 3 2 . 3 . 1 . 2 1 2 . 2 1 . 2 1 1 AID 14 | . . . . . . . . . . . . . . 1 1 3 . . . . . 2 . . . . . 1 . . . . . . . 2 . 1 2 . . . 1 . DROP 4 | . . . . . . . . 1 . . . 1 . 1 . . 1 . . . . . . . . . . . . . . . . . . . . . . . . . . . PICKUP 2 | . . . . . . . . . . . . . 1 . . . 1 . . . . . . . . . . . . . . . . . . . . . . . . . . . Ally Attacks 4542 | . . . 25 . . 67 3 . 26 12 . 76 51 79 46 54 66 118 146 141 97 . 118 202 86 46 98 151 100 104 158 122 124 129 59 106 143 258 312 128 111 197 297 486 Total Damage 149103 | . . . 418 . . 809 46 . 351 149 . 957 1082 1373 1208 1772 2354 2963 3704 2613 2393 . 2333 6433 3493 1703 2978 5242 2969 4484 5567 4386 3964 3009 2177 2899 4508 7308 9700 4493 3872 6246 11421 27726 Kills 808 | . . . 12 . . 8 1 . 6 1 . 11 9 14 11 9 14 15 21 23 18 . 27 39 6 12 24 28 25 29 25 21 23 12 8 18 25 38 58 18 13 26 65 95 Allies Corrupted 35 | . . . . . . . . . . . . 1 . . . . . . 1 . 1 . . 1 4 . . . . . . . . . . . . 2 3 2 . 1 11 8 Allies Melted 5 | . . . . . . . . . . . . . . . . . . . . . . . . 1 . . . . . 2 . . 1 . . 1 . . . . . . . . Intel | -11 -10 -10 -9 -9 -9 -8 -8 -8 -8 -7 -7 -7 -7 -6 -6 -5 -5 -5 -5 -5 -5 -5 -5 -4 -4 -4 -4 -4 -4 -3 -3 -3 -3 -2 -2 -2 -2 -2 -2 -2 -1 -1 -1 -1 ------- Run | Yrd Mat Min Mat Sto Gar Mat Gar Mat Gar Fac Was Fac Gar Fac Gar Fac Gar Fac Gar Fac Gar Fac Gar Fac Was Fac Gar Fac Gar Res Gar Qua Gar Res Gar Res Gar Res Tes Gar Acc Gar Acc Com Robot Analysis Total 2 | . . . 2 . . . . . . . . . . . . . . . . . . . . . . . . . . . . . . . . . . . . . . . . . Derelict Logs Recovered 1 | . . 1 . . . . . . . . . . . . . . . . . . . . . . . . . . . . . . . . . . . . . . . . . . Drone Launches . | . . . . . . . . . . . . . . . . . . . . . . . . . . . . . . . . . . . . . . . . . . . . . Drone Recoveries . | . . . . . . . . . . . . . . . . . . . . . . . . . . . . . . . . . . . . . . . . . . . . . Exploration | -11 -10 -10 -9 -9 -9 -8 -8 -8 -8 -7 -7 -7 -7 -6 -6 -5 -5 -5 -5 -5 -5 -5 -5 -4 -4 -4 -4 -4 -4 -3 -3 -3 -3 -2 -2 -2 -2 -2 -2 -2 -1 -1 -1 -1 ------------- Run | Yrd Mat Min Mat Sto Gar Mat Gar Mat Gar Fac Was Fac Gar Fac Gar Fac Gar Fac Gar Fac Gar Fac Gar Fac Was Fac Gar Fac Gar Res Gar Qua Gar Res Gar Res Gar Res Tes Gar Acc Gar Acc Com Turns Passed 59955 | 55 1537 1217 1177 1854 964 2000 1661 3544 1167 559 1881 914 1035 1008 1288 859 1666 530 1516 1545 1698 318 1599 806 816 1379 1705 844 1373 450 1519 582 1693 784 1243 691 1592 786 1488 1253 442 1486 2001 5430 Spaces Moved 24860 | 32 674 457 616 844 452 732 556 1224 391 249 823 557 534 416 628 422 761 306 671 587 651 97 602 328 130 491 607 323 509 149 633 172 624 367 584 321 792 381 740 593 187 702 818 2127 Core 134 | 3 . . . . . . . . . . . . . . . . . . . . . . . . . . . . . . . . . . . . . . . . . . . 131 Treads 24467 | 29 674 457 616 844 452 732 556 1224 391 249 823 557 534 416 628 422 761 306 671 587 651 97 602 328 130 491 607 323 509 149 633 172 624 367 584 321 792 381 740 593 187 702 818 1737 Legs 259 | . . . . . . . . . . . . . . . . . . . . . . . . . . . . . . . . . . . . . . . . . . . . 259 Wheels . | . . . . . . . . . . . . . . . . . . . . . . . . . . . . . . . . . . . . . . . . . . . . . Hover . | . . . . . . . . . . . . . . . . . . . . . . . . . . . . . . . . . . . . . . . . . . . . . Flight . | . . . . . . . . . . . . . . . . . . . . . . . . . . . . . . . . . . . . . . . . . . . . . Fastest Speed 50 | 50 160 240 160 160 160 160 170 166 246 167 160 160 160 170 170 170 160 160 160 240 232 232 232 232 238 232 232 245 245 163 163 240 163 163 180 180 180 180 173 173 166 166 163 50 Average Speed 200 | 149 186 240 160 160 160 235 249 246 246 167 165 160 162 170 170 170 166 160 194 240 235 232 232 236 238 237 237 245 245 240 219 240 231 193 180 180 180 180 178 173 166 194 219 191 Slowest Speed 1000 | 160 240 240 240 240 160 250 250 250 246 167 167 160 170 170 170 170 240 160 240 240 240 232 232 238 238 238 245 245 245 243 243 243 243 262 180 180 180 180 180 173 173 243 243 1000 Overloaded Moves . | . . . . . . . . . . . . . . . . . . . . . . . . . . . . . . . . . . . . . . . . . . . . . Propulsion Burnouts . | . . . . . . . . . . . . . . . . . . . . . . . . . . . . . . . . . . . . . . . . . . . . . Robots Hopped 1 | . . . . . . . . . . . . . . . 1 . . . . . . . . . . . . . . . . . . . . . . . . . . . . . Cave-ins Triggered . | . . . . . . . . . . . . . . . . . . . . . . . . . . . . . . . . . . . . . . . . . . . . . Exploration Rate (%) 52 | 4 97 95 51 92 55 61 67 78 65 8 89 17 74 11 70 13 83 9 93 15 80 2 85 13 83 18 85 12 65 10 82 29 93 11 78 9 88 17 78 66 6 96 30 70 Regions Visited 44 Branch Regions 5 Pre-discovered Areas 4 | . 2 . 1 . . . . 1 . . . . . . . . . . . . . . . . . . . . . . . . . . . . . . . . . . . . Known Exits Taken 20 | . . 1 1 1 . 1 . 1 . . . 1 . 1 . 1 . 1 . 1 . 1 . . . 1 . 1 . 1 . 1 . 1 . 1 . 1 1 . 1 . . . Unknown Exits Taken 3 | 1 1 . . . . . . . . . . . . . . . . . . . . . . . . . . . . . . . . . . . . . . . . . 1 . Scrap Searched 2 | . . 2 . . . . . . . . . . . . . . . . . . . . . . . . . . . . . . . . . . . . . . . . . . Spaces Dug 162 | . . . . . . . . 1 1 . 2 1 . . 1 5 12 2 . 5 . . 20 . . 4 3 1 . 3 3 . 1 9 11 4 23 2 9 7 1 12 2 17 Terrain Destroyed 591 | . . . . 33 . . 4 11 50 . 2 1 28 . 1 10 13 3 11 12 1 . 22 . 3 6 6 4 11 5 4 . 27 16 28 9 26 3 13 13 1 16 2 196 Melee 18 | . . . . . . . . 1 1 . 2 1 . . 1 . 12 . . . . . . . . . . . . . . . . . . . . . . . . . . . Projectile 239 | . . . . . . . . . . . . . 1 . . 5 1 3 11 12 1 . 22 . 3 5 6 4 11 5 4 . 27 16 7 9 26 3 13 13 1 16 2 12 AOE 329 | . . . . 33 . . 4 10 49 . . . 27 . . 5 . . . . . . . . . 1 . . . . . . . . 21 . . . . . . . . 179 Terrain Rammed . | . . . . . . . . . . . . . . . . . . . . . . . . . . . . . . . . . . . . . . . . . . . . . Walls Destroyed . | . . . . . . . . . . . . . . . . . . . . . . . . . . . . . . . . . . . . . . . . . . . . . Machines Disabled . | . . . . . . . . . . . . . . . . . . . . . . . . . . . . . . . . . . . . . . . . . . . . . Actions | -11 -10 -10 -9 -9 -9 -8 -8 -8 -8 -7 -7 -7 -7 -6 -6 -5 -5 -5 -5 -5 -5 -5 -5 -4 -4 -4 -4 -4 -4 -3 -3 -3 -3 -2 -2 -2 -2 -2 -2 -2 -1 -1 -1 -1 --------- Run | Yrd Mat Min Mat Sto Gar Mat Gar Mat Gar Fac Was Fac Gar Fac Gar Fac Gar Fac Gar Fac Gar Fac Gar Fac Was Fac Gar Fac Gar Res Gar Qua Gar Res Gar Res Gar Res Tes Gar Acc Gar Acc Com Total 33024 | 37 876 566 758 1218 596 883 730 1576 505 343 1103 576 664 707 807 528 1046 336 818 695 787 191 751 355 631 666 866 370 628 233 758 334 895 444 774 432 954 480 898 827 317 827 1016 3222 Wait 3901 | . 126 99 93 249 60 19 38 169 2 28 13 . 40 256 96 48 98 2 17 53 38 87 49 1 465 38 55 14 27 25 62 138 38 3 90 45 57 54 46 84 118 43 114 704 Move 24820 | 31 673 456 615 844 451 732 555 1224 390 249 822 556 533 415 625 422 760 305 670 585 650 96 600 328 129 491 606 322 508 149 631 172 623 367 583 320 791 380 740 591 186 701 817 2126 Hop 1 | . . . . . . . . . . . . . . . 1 . . . . . . . . . . . . . . . . . . . . . . . . . . . . . Pick Up 311 | 1 11 4 10 7 8 12 9 10 5 2 7 6 11 6 6 4 16 2 9 2 10 . 9 1 . 13 14 4 10 5 9 1 24 2 9 1 2 3 5 13 . 9 4 15 Fast Attach 177 | 5 5 . 4 6 1 3 4 5 . . 6 . 7 3 1 3 11 . 3 4 5 . 1 2 2 5 7 1 3 1 1 1 7 4 2 5 3 3 3 2 . 4 1 43 Attach 136 | . . . 2 3 4 4 1 2 2 7 1 1 2 5 2 2 5 . 2 2 4 3 2 2 1 15 4 2 2 3 3 . . 2 4 1 . 1 4 1 2 1 3 29 Detach 86 | . . . . . 2 4 . 1 . . 4 . 2 . 2 . 3 . 3 . 4 2 1 1 5 8 3 1 . 1 2 . 1 2 2 2 . 1 1 . . . 2 26 Swap 332 | . 8 . 4 17 11 15 20 14 21 8 7 4 13 6 7 7 15 6 7 4 7 2 2 2 1 9 6 4 7 3 1 3 11 1 4 4 10 5 6 9 . 9 10 22 Drop 295 | . 8 . 5 19 8 15 9 9 3 . 10 4 11 3 4 2 25 1 3 3 10 1 5 . . 6 15 1 8 3 2 . 29 6 5 5 3 7 3 12 . 6 2 24 Fire 2425 | . 39 4 23 57 41 64 80 134 62 48 125 4 28 11 47 39 95 19 84 38 52 . 73 18 28 79 133 21 58 41 42 13 141 55 54 45 72 19 75 52 10 49 55 198 Melee 104 | . . . . . . 6 3 1 10 . 61 1 5 . 1 . 15 . . . . . . . . . . . . . . . . . . . . . . . . . . 1 Ram . | . . . . . . . . . . . . . . . . . . . . . . . . . . . . . . . . . . . . . . . . . . . . . Kick . | . . . . . . . . . . . . . . . . . . . . . . . . . . . . . . . . . . . . . . . . . . . . . Crush 135 | . 6 3 2 8 3 5 . 7 1 . 47 . . . . . . . . . . . . . . 2 3 . 1 1 . . . . . 2 1 5 9 2 . . 6 21 Escape Stasis 54 | . . . . . . . 2 . 7 . . . . . . . . . . . 5 . 4 . . . 14 . 4 . 2 . 14 . . . 2 . . . . . . . Rewire 224 | . . . . . . 4 1 . 2 1 . . 12 2 15 1 3 1 20 4 2 . 5 . . . 6 . . 1 3 6 7 2 21 2 13 2 6 61 1 5 2 13 Trap 8 | . . . . . . . 8 . . . . . . . . . . . . . . . . . . . . . . . . . . . . . . . . . . . . . Miscellaneous 15 | . . . . 8 7 . . . . . . . . . . . . . . . . . . . . . . . . . . . . . . . . . . . . . . . Route ------- -11/Scrapyard -10/Materials (discovered 5 exits: *Mat x3 / *Min / Sub) -10/Mines (discovered 2 exits: *Mat x2) -9/Materials (discovered 7 exits: *Mat x3 / *Min x2 / *Sto x2) -9/Storage (discovered 3 exits: *Mat / Rec / Gar) -9/Garrison (discovered 3 exits: *Mat x3) -8/Materials (discovered 3 exits: *Fac x2 / Gar) -8/Garrison (discovered 3 exits: *Mat x3) -8/Materials (discovered 3 exits: *Fac x2 / Gar) -8/Garrison (discovered 3 exits: *Fac x3) -7/Factory (discovered 2 exits: Fac / Low) -7/Waste -7/Factory (discovered 3 exits: *Fac / *Low / Gar) -7/Garrison (discovered 3 exits: *Fac x3) -6/Factory -6/Garrison (discovered 3 exits: *Fac x3) -5/Factory -5/Garrison (discovered 3 exits: *Fac x3) -5/Factory -5/Garrison (discovered 4 exits: *Fac x3 / *Fac) -5/Factory (discovered 2 exits: *Fac / Gar) -5/Garrison (discovered 4 exits: *Fac x3 / *Fac) -5/Factory -5/Garrison (discovered 3 exits: *Fac x3) -4/Factory -4/Waste -4/Factory (discovered 2 exits: *Res / Gar) -4/Garrison (discovered 3 exits: *Fac x3) -4/Factory -4/Garrison (discovered 3 exits: *Res x3) -3/Research -3/Garrison (discovered 2 exits: *Qua x2) -3/Quarantine -3/Garrison (discovered 3 exits: *Res x3) -2/Research -2/Garrison (discovered 4 exits: *Res x4) -2/Research -2/Garrison (discovered 4 exits: *Acc x3 / *Res) -2/Research -2/Testing (discovered 2 exits: *Acc / Gar) -2/Garrison (discovered 3 exits: *Acc x3) -1/Access -1/Garrison (discovered 3 exits: [*Acc x3]) -1/Access -1/Command (discovered 2 exits: [*Sur x2]) 0b11 Command History --------- Turn | Location | Event 21 | -11/Scrapyard | Discovered new exit (range 16) 56 | -11/Scrapyard | Entered Materials 287 | -10/Materials | Central database locked down 313 | -10/Materials | Build established: Mutant 394 | -10/Materials | Discovered new exit (range 5) 503 | -10/Materials | Discovered new exit (range 8) 796 | -10/Materials | Repaired Lgt. Treads 930 | -10/Materials | Discovered new exit (range 8) 971 | -10/Materials | Identified exit to Materials 971 | -10/Materials | Identified exit to Subcaves 994 | -10/Materials | Learned location of 2 exits from Materials 1006 | -10/Materials | Learned location of 3 exits from Materials 1008 | -10/Materials | Loaded intel: 18 trap records 1009 | -10/Materials | Learned Storage emergency access door positions 1018 | -10/Materials | Learned 2 Mines zone layouts 1036 | -10/Materials | Learned Storage security intel 1104 | -10/Materials | Repaired Spread Laser 1137 | -10/Materials | Repaired Spread Laser 1593 | -10/Materials | Entered Mines 1893 | -10/Mines | Learned Materials garrison access intel 1894 | -10/Mines | Met a Derelict who couldn't figure out how to use a Trap Extractor 2271 | -10/Mines | Discovered exit to Materials (range 7) 2579 | -10/Mines | Found a damaged Exp. Sensor Array with a note attached 2583 | -10/Mines | Found Prototype Device 2726 | -10/Mines | Discovered exit to Materials (range 14) 2761 | -10/Mines | Received a Mining Laser from a helpful Derelict 2810 | -10/Mines | Entered Materials 2810 | -9/Materials | Accompanied by 3 allies 2810 | -9/Materials | Evolved 2 slots: Propulsion x1, Utility x1 2811 | -9/Materials | Identified exit to Materials 2811 | -9/Materials | Identified exit to Storage 2811 | -9/Materials | Identified exit to Mines 2815 | -9/Materials | Led the pair of lost Derelicts to an unsafe place 2956 | -9/Materials | Central database locked down 3499 | -9/Materials | Identified Exp. Sensor Array 3720 | -9/Materials | Loaded intel: 21 trap records 3764 | -9/Materials | Build established: Scavenger-Mutant 3817 | -9/Materials | Learned location of 1 exit from Recycling 3828 | -9/Materials | Learned 4 Recycling zone layouts 3831 | -9/Materials | Learned Storage emergency access door positions 3845 | -9/Materials | Learned Storage stockpile data 3987 | -9/Materials | Entered Storage 3987 | -9/Storage | Accompanied by 1 ally 3988 | -9/Storage | Identified exit to Recycling 4809 | -9/Storage | Garrison activated, responded to threat 5553 | -9/Storage | Met 01-MTF 5820 | -9/Storage | Build established: Mutant 5841 | -9/Storage | Identified exit to Garrison 5841 | -9/Storage | Entered Garrison 5841 | -9/Garrison | Accompanied by 1 ally (01-MTF) 5844 | -9/Garrison | 01-MTF left 5911 | -9/Garrison | Triggered checkpoint 6007 | -9/Garrison | Installed Relay Interface Framework 6056 | -9/Garrison | Garrison Relay disabled 6129 | -9/Garrison | Triggered checkpoint 6207 | -9/Garrison | Triggered checkpoint 6410 | -9/Garrison | Triggered checkpoint 6471 | -9/Garrison | Triggered checkpoint 6534 | -9/Garrison | Garrison Relay disabled 6565 | -9/Garrison | Discovered exit to Materials (range 14) 6565 | -9/Garrison | Discovered exit to Materials (range 63) 6565 | -9/Garrison | Discovered exit to Materials (range 46) 6710 | -9/Garrison | Garrison Relay disabled 6805 | -9/Garrison | Entered Materials 6805 | -8/Materials | Evolved 2 slots: Utility x2 6806 | -8/Materials | Loaded intel: 1 garrison access location 6870 | -8/Materials | Build established: Bothacker-Mutant 6915 | -8/Materials | Garrison activated, responded to threat 7306 | -8/Materials | Discovered new exit (range 8) 8127 | -8/Materials | Discovered new exit (range 10) 8804 | -8/Materials | Identified exit to Garrison 8805 | -8/Materials | Entered Garrison 8805 | -8/Garrison | Accompanied by 2 allies 8881 | -8/Garrison | Expanded RIF knowledge: Command Fork 9251 | -8/Garrison | Triggered checkpoint 9533 | -8/Garrison | Triggered checkpoint 9587 | -8/Garrison | Triggered checkpoint 9638 | -8/Garrison | Garrison Relay disabled 9702 | -8/Garrison | Discovered new exit (range 13) 9893 | -8/Garrison | Triggered checkpoint 10277 | -8/Garrison | Discovered new exit (range 15) 10297 | -8/Garrison | Discovered new exit (range 94) 10297 | -8/Garrison | Discovered new exit (range 47) 10297 | -8/Garrison | Discovered new exit (range 11) 10466 | -8/Garrison | Entered Materials 10466 | -8/Materials | Accompanied by 1 ally 10589 | -8/Materials | Repaired Arm. Treads 10628 | -8/Materials | Repaired Reactive Plating 11626 | -8/Materials | Discovered new exit (range 16) 12047 | -8/Materials | Learned location of 1 exit from Recycling 12086 | -8/Materials | Learned location of 1 exit from Lower Caves 12117 | -8/Materials | Learned Storage trap positions 12139 | -8/Materials | Learned location of 2 exits from Factory 12150 | -8/Materials | Learned Factory garrison access intel 12151 | -8/Materials | Learned Recycling recycling unit intel 13027 | -8/Materials | Repaired Rocket Launcher 13112 | -8/Materials | Discovered new exit (range 7) 13319 | -8/Materials | Garrison activated, responded to threat 14010 | -8/Materials | Identified exit to Garrison 14010 | -8/Materials | Entered Garrison 14010 | -8/Garrison | Accompanied by 2 allies 14068 | -8/Garrison | Triggered checkpoint 14153 | -8/Garrison | Destroyed 7 combat bots 14156 | -8/Garrison | Garrison Relay disabled 14494 | -8/Garrison | Triggered checkpoint 14531 | -8/Garrison | Triggered checkpoint 14626 | -8/Garrison | Triggered checkpoint 14672 | -8/Garrison | Garrison Relay disabled 14720 | -8/Garrison | Discovered new exit (range 8) 14737 | -8/Garrison | Discovered new exit (range 68) 14737 | -8/Garrison | Discovered new exit (range 9) 14737 | -8/Garrison | Discovered new exit (range 75) 14862 | -8/Garrison | Triggered checkpoint 14982 | -8/Garrison | Garrison Relay disabled 15029 | -8/Garrison | Core integrity fell below 50% 15138 | -8/Garrison | Expanded RIF knowledge: Robot Detection 15177 | -8/Garrison | Entered Factory 15177 | -7/Factory | Evolved 2 slots: Propulsion x1, Utility x1 15178 | -7/Factory | Identified exit to Lower Caves 15178 | -7/Factory | Identified exit to Factory 15179 | -7/Factory | Loaded intel: 4 garrison access locations 15633 | -7/Factory | Garrison activated, responded to threat 15736 | -7/Factory | Sucked down chute 15736 | -7/Factory | Entered Waste 15767 | -7/Waste | Spotted C-40 Crusher 15779 | -7/Waste | Spotted C-40 Crusher 15779 | -7/Waste | Spotted C-40 Crusher 15781 | -7/Waste | Spotted C-40 Crusher 15832 | -7/Waste | Spotted C-40 Crusher 15838 | -7/Waste | Spotted C-40 Crusher 15967 | -7/Waste | Discovered new exit (range 15) 16939 | -7/Waste | Destroyed C-40 Crusher 17144 | -7/Waste | Destroyed C-40 Crusher 17174 | -7/Waste | Destroyed C-40 Crusher 17205 | -7/Waste | Destroyed C-40 Crusher 17276 | -7/Waste | Destroyed C-40 Crusher 17340 | -7/Waste | Destroyed C-40 Crusher 17465 | -7/Waste | Warlord forces began an assault 17617 | -7/Waste | Entered Factory 17617 | -7/Factory | Accompanied by 18 allies 17808 | -7/Factory | Discovered exit to Lower Caves (range 10) 18009 | -7/Factory | Lost 7 allies 18180 | -7/Factory | Discovered exit to Factory (range 16) 18348 | -7/Factory | Lost 3 allies 18521 | -7/Factory | Identified exit to Garrison 18531 | -7/Factory | Entered Garrison 18531 | -7/Garrison | Accompanied by 9 allies 18603 | -7/Garrison | Discovered exit to Factory (range 52) 18603 | -7/Garrison | Discovered exit to Factory (range 50) 18603 | -7/Garrison | Discovered exit to Factory (range 84) 18699 | -7/Garrison | Triggered checkpoint 18708 | -7/Garrison | Triggered checkpoint 18737 | -7/Garrison | Lost 3 allies 18846 | -7/Garrison | Garrison Relay disabled 18923 | -7/Garrison | Expanded RIF knowledge: Coupler Efficiency 19219 | -7/Garrison | Triggered checkpoint 19320 | -7/Garrison | Build established: Botlord-Mutant 19349 | -7/Garrison | Triggered checkpoint 19356 | -7/Garrison | Garrison Relay disabled 19566 | -7/Garrison | Entered Factory 19566 | -6/Factory | Accompanied by 8 allies 19566 | -6/Factory | Evolved 2 slots: Power x1, Utility x1 19770 | -6/Factory | Fabricated P-60 Hacker (x2) 19838 | -6/Factory | Fabricated P-60 Hacker (x2) 19905 | -6/Factory | Fabricated P-60 Hacker (x2) 19972 | -6/Factory | Fabricated P-60 Hacker (x2) 20039 | -6/Factory | Fabricated P-60 Hacker? 20356 | -6/Factory | Garrison activated, responded to threat 20511 | -6/Factory | Identified exit to Garrison 20574 | -6/Factory | Entered Garrison 20574 | -6/Garrison | Accompanied by 21 allies 20616 | -6/Garrison | Triggered checkpoint 20621 | -6/Garrison | Expanded RIF knowledge: Patrol Navigation 20685 | -6/Garrison | Garrison Relay disabled 20719 | -6/Garrison | Build established: Commander-Mutant 20750 | -6/Garrison | Triggered checkpoint 20754 | -6/Garrison | Triggered checkpoint 20764 | -6/Garrison | Triggered checkpoint 20778 | -6/Garrison | Triggered checkpoint 20808 | -6/Garrison | Triggered checkpoint 20826 | -6/Garrison | Garrison Relay disabled 21071 | -6/Garrison | Discovered new exit (range 14) 21306 | -6/Garrison | Triggered checkpoint 21306 | -6/Garrison | Hacker 5d assimilated hostile G-50 Soldier 21326 | -6/Garrison | Garrison Relay disabled 21364 | -6/Garrison | Discovered new exit (range 14) 21410 | -6/Garrison | Discovered new exit (range 11) 21410 | -6/Garrison | Discovered new exit (range 85) 21410 | -6/Garrison | Discovered new exit (range 47) 21461 | -6/Garrison | Rewired Striker 21470 | -6/Garrison | Rewired Striker 21862 | -6/Garrison | Entered Factory 21862 | -5/Factory | Accompanied by 30 allies 21862 | -5/Factory | Evolved 2 slots: Utility x2 22035 | -5/Factory | Hacker 5j assimilated hostile S-27 Virus 22162 | -5/Factory | First assault squad dispatched 22182 | -5/Factory | Fabricated Adv. Cooling System? 22201 | -5/Factory | Hacker 5e assimilated hostile G-50 Soldier 22260 | -5/Factory | Lost 31 allies 22311 | -5/Factory | Fabricated Enh. Nova Cannon? 22325 | -5/Factory | Cargo convoy interrupted 22360 | -5/Factory | Lost 3 allies 22484 | -5/Factory | Fabricated M-13 Machinist (x1) 22521 | -5/Factory | Build established: Botlord-Mutant 22721 | -5/Factory | Identified exit to Garrison 22721 | -5/Factory | Entered Garrison 22721 | -5/Garrison | Accompanied by 2 allies 22734 | -5/Garrison | Found Prototype Device 22734 | -5/Garrison | Identified Exp. Force Field 22788 | -5/Garrison | Found Exp. Force Field 22796 | -5/Garrison | Found Exp. Force Field 22865 | -5/Garrison | Triggered checkpoint 22928 | -5/Garrison | Garrison Relay disabled 22963 | -5/Garrison | Expanded RIF knowledge: Command Fork 23061 | -5/Garrison | Triggered checkpoint 23158 | -5/Garrison | Spotted B-75 Beast 23163 | -5/Garrison | Triggered checkpoint 23182 | -5/Garrison | Allies destroyed B-75 Beast 23223 | -5/Garrison | Triggered checkpoint 23271 | -5/Garrison | Triggered checkpoint 23343 | -5/Garrison | Garrison Relay disabled 23346 | -5/Garrison | Garrison Relay disabled 23372 | -5/Garrison | Garrison Relay disabled 23381 | -5/Garrison | Garrison Relay disabled 23457 | -5/Garrison | Learned Factory security intel 23485 | -5/Garrison | Garrison Relay disabled 23528 | -5/Garrison | Discovered new exit (range 12) 23653 | -5/Garrison | Triggered checkpoint 23701 | -5/Garrison | Triggered checkpoint 23847 | -5/Garrison | Discovered new exit (range 8) 24353 | -5/Garrison | Discovered new exit (range 8) 24387 | -5/Garrison | Entered Factory 24387 | -5/Factory | Accompanied by 10 allies 24495 | -5/Factory | Garrison activated, responded to threat 24503 | -5/Factory | P-70 Sage assimilated allied Soldier 6d 24687 | -5/Factory | First assault squad dispatched 24813 | -5/Factory | Lost 4 allies 24907 | -5/Factory | Identified exit to Garrison 24917 | -5/Factory | Entered Garrison 24917 | -5/Garrison | Accompanied by 7 allies 24935 | -5/Garrison | Triggered checkpoint 24948 | -5/Garrison | Triggered checkpoint 24965 | -5/Garrison | Garrison Relay disabled 25028 | -5/Garrison | Expanded RIF knowledge: Threat Obfuscation 25204 | -5/Garrison | Spotted B-75 Beast 25208 | -5/Garrison | Assimilated Beast 6a with formatsys_high 25213 | -5/Garrison | Triggered checkpoint 25227 | -5/Garrison | Triggered checkpoint 25227 | -5/Garrison | Triggered checkpoint 25245 | -5/Garrison | P-70 Sage assimilated allied Sentinel 6i 25282 | -5/Garrison | Lost 4 allies 25324 | -5/Garrison | Rescued a captive Derelict 25325 | -5/Garrison | Rescued a captive Derelict 25389 | -5/Garrison | Triggered checkpoint 25416 | -5/Garrison | Garrison Relay disabled 25464 | -5/Garrison | Discovered new exit (range 12) 25473 | -5/Garrison | Triggered checkpoint 25492 | -5/Garrison | Discovered new exit (range 5) 25606 | -5/Garrison | Triggered checkpoint 25614 | -5/Garrison | Garrison Relay disabled 25637 | -5/Garrison | Spotted B-90 Cyclops 25651 | -5/Garrison | Lost 3 allies 25660 | -5/Garrison | Allies destroyed B-90 Cyclops 25675 | -5/Garrison | Found Quantum Capacitor 25686 | -5/Garrison | Rewired B-75 Beast 25689 | -5/Garrison | Rewired B-90 Cyclops 25771 | -5/Garrison | Discovered new exit (range 8) 25791 | -5/Garrison | Learned Factory security intel 26029 | -5/Garrison | Garrison Relay disabled 26093 | -5/Garrison | Triggered checkpoint 26108 | -5/Garrison | Discovered new exit (range 11) 26433 | -5/Garrison | Entered Factory 26433 | -5/Factory | Accompanied by 11 allies 26661 | -5/Factory | Lost 3 allies 27464 | -5/Factory | Identified exit to Garrison 27699 | -5/Factory | Discovered new exit (range 4) 27933 | -5/Factory | First assault squad dispatched 27978 | -5/Factory | Entered Garrison 27978 | -5/Garrison | Accompanied by 8 allies 27981 | -5/Garrison | Discovered new exit (range 9) 27998 | -5/Garrison | Triggered checkpoint 28054 | -5/Garrison | Triggered checkpoint 28099 | -5/Garrison | Garrison Relay disabled 28348 | -5/Garrison | Found Unknown Hackware 28352 | -5/Garrison | Found Unknown Hackware 28434 | -5/Garrison | Triggered checkpoint 28436 | -5/Garrison | Spotted B-75 Beast 28450 | -5/Garrison | Allies destroyed B-75 Beast 28455 | -5/Garrison | Triggered checkpoint 28528 | -5/Garrison | Discovered new exit (range 8) 28730 | -5/Garrison | Triggered checkpoint 28748 | -5/Garrison | Triggered checkpoint 28792 | -5/Garrison | Triggered checkpoint 28813 | -5/Garrison | Garrison Relay disabled 29000 | -5/Garrison | Expanded RIF knowledge: Command Fork 29061 | -5/Garrison | Discovered new exit (range 12) 29064 | -5/Garrison | Triggered checkpoint 29104 | -5/Garrison | Triggered checkpoint 29112 | -5/Garrison | Garrison Relay disabled 29415 | -5/Garrison | Expanded RIF knowledge: Hotswap 29431 | -5/Garrison | Discovered new exit (range 12) 29676 | -5/Garrison | Entered Factory 29676 | -5/Factory | Accompanied by 21 allies 29737 | -5/Factory | Fabricated M-13 Machinist (x1) 29770 | -5/Factory | Fabricated P-60 Hacker (x2) 29803 | -5/Factory | Fabricated P-60 Hacker? 29945 | -5/Factory | Identified exit to Garrison 29976 | -5/Factory | First assault squad dispatched 29994 | -5/Factory | Entered Garrison 29994 | -5/Garrison | Accompanied by 24 allies 30023 | -5/Garrison | Build established: Commander-Mutant 30038 | -5/Garrison | Triggered checkpoint 30080 | -5/Garrison | Garrison Relay disabled 30198 | -5/Garrison | Spotted B-90 Cyclops 30210 | -5/Garrison | Rewired B-90 Cyclops 30211 | -5/Garrison | Rewired B-75 Beast 30264 | -5/Garrison | Triggered checkpoint 30273 | -5/Garrison | Triggered checkpoint 30300 | -5/Garrison | Triggered checkpoint 30302 | -5/Garrison | Triggered checkpoint 30303 | -5/Garrison | Hacker 6a assimilated hostile G-50 Soldier 30361 | -5/Garrison | Build established: Botlord-Mutant 30397 | -5/Garrison | Rewired Executioner 30402 | -5/Garrison | Rewired Executioner 30470 | -5/Garrison | Triggered checkpoint 30491 | -5/Garrison | Learned Factory security intel 30526 | -5/Garrison | Garrison Relay disabled 30598 | -5/Garrison | Discovered new exit (range 10) 30769 | -5/Garrison | Build established: Commander-Mutant 30802 | -5/Garrison | Garrison Relay disabled 30814 | -5/Garrison | Triggered checkpoint 30823 | -5/Garrison | Lost 3 allies 30877 | -5/Garrison | Discovered new exit (range 11) 31181 | -5/Garrison | Discovered new exit (range 3) 31230 | -5/Garrison | Expanded RIF knowledge: Autoassimilate 31340 | -5/Garrison | Triggered checkpoint 31340 | -5/Garrison | Garrison Relay disabled 31593 | -5/Garrison | Entered Factory 31593 | -4/Factory | Accompanied by 26 allies 31593 | -4/Factory | Evolved 2 slots: Propulsion x1, Utility x1 31652 | -4/Factory | Build established: Botlord-Mutant 31953 | -4/Factory | Found Prototype Hackware 32064 | -4/Factory | Identified Exp. System Shield 32093 | -4/Factory | First assault squad dispatched 32228 | -4/Factory | Allies destroyed Executioner 32269 | -4/Factory | Lost 15 allies 32289 | -4/Factory | Discovered new exit (range 15) 32355 | -4/Factory | Lost 4 allies 32399 | -4/Factory | Sucked down chute 32399 | -4/Factory | Entered Waste 32414 | -4/Waste | EMP discharged 32453 | -4/Waste | Spotted C-40 Crusher 32462 | -4/Waste | Spotted C-40 Crusher 32485 | -4/Waste | Allies destroyed C-40 Crusher 32492 | -4/Waste | Found Unknown Protection 32492 | -4/Waste | Identified Damper Plating 32514 | -4/Waste | EMP discharged 32515 | -4/Waste | Spotted C-40 Crusher 32524 | -4/Waste | Spotted C-40 Crusher 32530 | -4/Waste | Spotted C-40 Crusher 32535 | -4/Waste | Allies destroyed C-40 Crusher 32544 | -4/Waste | 7 allies followed down the chute 32548 | -4/Waste | Allies destroyed C-40 Crusher 32575 | -4/Waste | Spotted C-40 Crusher 32596 | -4/Waste | Destroyed C-40 Crusher 32614 | -4/Waste | EMP discharged 32699 | -4/Waste | Allies destroyed C-40 Crusher 32701 | -4/Waste | Discovered new exit (range 16) 32704 | -4/Waste | Allies destroyed C-40 Crusher 32714 | -4/Waste | EMP discharged 32814 | -4/Waste | EMP discharged 32914 | -4/Waste | EMP discharged 33014 | -4/Waste | EMP discharged 33114 | -4/Waste | EMP discharged 33214 | -4/Waste | EMP discharged 33215 | -4/Waste | Entered Factory 33286 | -4/Factory | Identified Relay Coupler [Proto] (x2) 33832 | -4/Factory | System corruption reached 10% 33918 | -4/Factory | Found Quantum Capacitor 33956 | -4/Factory | P-70 Sage assimilated allied Veteran 7h 34002 | -4/Factory | Spotted Executioner 34002 | -4/Factory | Spotted Executioner 34003 | -4/Factory | Cargo convoy interrupted 34006 | -4/Factory | P-70 Sage assimilated allied Veteran 7i 34020 | -4/Factory | Assimilated Executioner with formatsys_high 34029 | -4/Factory | Allies destroyed Executioner 34063 | -4/Factory | Lost 7 parts (2p1n2u2w) 34108 | -4/Factory | Found Exp. Force Field 34127 | -4/Factory | Found Prototype Device 34127 | -4/Factory | Identified Exp. Weapon Cycler 34134 | -4/Factory | Found Prototype Device 34134 | -4/Factory | Identified Exp. Thermal Shield 34142 | -4/Factory | Found Exp. Force Field 34490 | -4/Factory | Discovered new exit (range 9) 34525 | -4/Factory | Found Corrupted Prototype Processor 34593 | -4/Factory | Identified exit to Garrison 34594 | -4/Factory | Entered Garrison 34594 | -4/Garrison | Accompanied by 3 allies 34674 | -4/Garrison | Triggered checkpoint 34710 | -4/Garrison | Garrison Relay disabled 34785 | -4/Garrison | Spotted B-86 Titan 34786 | -4/Garrison | Autoassimilated Titan 7a with RIF 34804 | -4/Garrison | Triggered checkpoint 34815 | -4/Garrison | Triggered checkpoint 34818 | -4/Garrison | Triggered checkpoint 34865 | -4/Garrison | Lost 6 allies 34910 | -4/Garrison | Discovered new exit (range 14) 34926 | -4/Garrison | Triggered checkpoint 35008 | -4/Garrison | Expanded RIF knowledge: Coupler Efficiency 35144 | -4/Garrison | Garrison Relay disabled 35347 | -4/Garrison | Triggered checkpoint 35366 | -4/Garrison | Garrison Relay disabled 35421 | -4/Garrison | Discovered new exit (range 13) 35459 | -4/Garrison | H-XX Assembler disabled 35878 | -4/Garrison | Found embedded Infiltrators 35887 | -4/Garrison | Discovered new exit (range 12) 35934 | -4/Garrison | Triggered checkpoint 35968 | -4/Garrison | Garrison Relay disabled 36299 | -4/Garrison | Entered Factory 36299 | -4/Factory | Accompanied by 19 allies 36483 | -4/Factory | Fabricated P-60 Hacker (x2) 36526 | -4/Factory | Fabricated M-13 Machinist? 36531 | -4/Factory | Found Prototype Launcher 36727 | -4/Factory | Found Quantum Capacitor 36799 | -4/Factory | First assault squad dispatched 36919 | -4/Factory | Identified Tesla Bomb Launcher 36961 | -4/Factory | Lost 10 allies 37093 | -4/Factory | Identified exit to Garrison 37143 | -4/Factory | Entered Garrison 37143 | -4/Garrison | Accompanied by 12 allies 37231 | -4/Garrison | Triggered checkpoint 37258 | -4/Garrison | Garrison Relay disabled 37300 | -4/Garrison | Lost 3 allies 37469 | -4/Garrison | Triggered checkpoint 37484 | -4/Garrison | Triggered checkpoint 37493 | -4/Garrison | Triggered checkpoint 37523 | -4/Garrison | Lost 4 allies 37581 | -4/Garrison | Discovered new exit (range 9) 37625 | -4/Garrison | Core integrity fell below 50% 37638 | -4/Garrison | Found Relay Coupler [Proto] 37645 | -4/Garrison | Found Relay Coupler [Proto] 37648 | -4/Garrison | Found Relay Coupler [Proto] 37656 | -4/Garrison | Found Relay Coupler [Proto] 37678 | -4/Garrison | Found Quantum Capacitor 37747 | -4/Garrison | Lost 4 allies 37779 | -4/Garrison | Triggered checkpoint 37817 | -4/Garrison | Garrison Relay disabled 37995 | -4/Garrison | Triggered checkpoint 38062 | -4/Garrison | Lost 6 allies 38096 | -4/Garrison | Garrison Relay disabled 38170 | -4/Garrison | Discovered new exit (range 14) 38180 | -4/Garrison | Spotted B-86 Titan 38192 | -4/Garrison | Rewired B-86 Titan 38271 | -4/Garrison | Triggered checkpoint 38281 | -4/Garrison | Discovered new exit (range 16) 38281 | -4/Garrison | Discovered new exit (range 67) 38281 | -4/Garrison | Discovered new exit (range 71) 38307 | -4/Garrison | Triggered checkpoint 38313 | -4/Garrison | Garrison Relay disabled 38429 | -4/Garrison | Expanded RIF knowledge: Coupler Efficiency 38516 | -4/Garrison | Entered Research 38516 | -3/Research | Accompanied by 3 allies 38516 | -3/Research | Evolved 2 slots: Propulsion x1, Utility x1 38734 | -3/Research | Found Hellfire Missile Launcher 38766 | -3/Research | First assault squad dispatched 38823 | -3/Research | Spotted B-86 Titan 38824 | -3/Research | Autoassimilated Titan 8a with RIF 38852 | -3/Research | Allied Derelicts emerged from ambush trap array 38870 | -3/Research | Spotted B-86 Titan 38881 | -3/Research | Assimilated Titan 8b with formatsys_high 38895 | -3/Research | Garrison activated, responded to threat 38949 | -3/Research | Lost 6 allies 38953 | -3/Research | Identified exit to Garrison 38966 | -3/Research | Entered Garrison 38966 | -3/Garrison | Accompanied by 4 allies 39120 | -3/Garrison | Triggered checkpoint 39228 | -3/Garrison | Garrison Relay disabled 39318 | -3/Garrison | Spotted B-86 Titan 39324 | -3/Garrison | Assimilated Titan 8c with formatsys_high 39326 | -3/Garrison | Triggered checkpoint 39340 | -3/Garrison | Triggered checkpoint 39340 | -3/Garrison | Triggered checkpoint 39351 | -3/Garrison | Triggered checkpoint 39430 | -3/Garrison | Triggered checkpoint 39480 | -3/Garrison | Lost 4 allies 39547 | -3/Garrison | Rescued a captive Derelict 39548 | -3/Garrison | Rescued a captive Derelict 39566 | -3/Garrison | Spotted B-75 Beast 39566 | -3/Garrison | Allies destroyed B-75 Beast 39582 | -3/Garrison | Rewired B-86 Titan 39583 | -3/Garrison | Rewired B-86 Titan 39693 | -3/Garrison | Discovered new exit (range 8) 39722 | -3/Garrison | Triggered checkpoint 39770 | -3/Garrison | Expanded RIF knowledge: Autooverride 39978 | -3/Garrison | Lost 3 allies 39982 | -3/Garrison | Triggered checkpoint 40006 | -3/Garrison | Garrison Relay disabled 40058 | -3/Garrison | Discovered new exit (range 14) 40278 | -3/Garrison | Expanded RIF knowledge: Structural Interface 40485 | -3/Garrison | Entered Quarantine 40485 | -3/Quarantine | Accompanied by 12 allies 40588 | -3/Quarantine | Lost 4 allies 40867 | -3/Quarantine | Garrison activated, responded to threat 40910 | -3/Quarantine | Lost 9 allies 40927 | -3/Quarantine | Identified exit to Garrison 41067 | -3/Quarantine | Entered Garrison 41067 | -3/Garrison | Accompanied by 11 allies 41119 | -3/Garrison | Triggered checkpoint 41181 | -3/Garrison | Garrison Relay disabled 41212 | -3/Garrison | Expanded RIF knowledge: Threat Obfuscation 41326 | -3/Garrison | Spotted Executioner 41333 | -3/Garrison | Destroyed Executioner 41344 | -3/Garrison | Rewired Striker 41354 | -3/Garrison | Found Prototype Processor 41364 | -3/Garrison | Rewired Striker 41426 | -3/Garrison | Lost 11 allies 41484 | -3/Garrison | Spotted B-86 Titan 41511 | -3/Garrison | Destroyed 7 combat bots 41517 | -3/Garrison | Lost 11 allies 41529 | -3/Garrison | Destroyed B-86 Titan 41564 | -3/Garrison | Triggered checkpoint 41579 | -3/Garrison | Triggered checkpoint 41662 | -3/Garrison | Q-Series assembled to engage unique threat in Research 41675 | -3/Garrison | Triggered checkpoint 41678 | -3/Garrison | Garrison Relay disabled 41695 | -3/Garrison | Found embedded Infiltrators 41745 | -3/Garrison | Discovered new exit (range 11) 41827 | -3/Garrison | QS Assembler disabled 42037 | -3/Garrison | Triggered checkpoint 42097 | -3/Garrison | Triggered checkpoint 42166 | -3/Garrison | Found Relay Coupler [Proto] 42169 | -3/Garrison | Found Relay Coupler [Proto] 42172 | -3/Garrison | Found Relay Coupler [Proto] 42175 | -3/Garrison | Found Relay Coupler [Proto] 42180 | -3/Garrison | Lost 3 allies 42291 | -3/Garrison | Triggered checkpoint 42302 | -3/Garrison | Discovered new exit (range 11) 42571 | -3/Garrison | Triggered checkpoint 42592 | -3/Garrison | Garrison Relay disabled 42599 | -3/Garrison | Identified Exp. Targeting Computer 42653 | -3/Garrison | Discovered new exit (range 15) 42760 | -3/Garrison | Entered Research 42760 | -2/Research | Accompanied by 6 allies 42760 | -2/Research | Evolved 2 slots: Utility x2 43051 | -2/Research | First assault squad dispatched 43130 | -2/Research | P-80 Master assimilated allied Plague 8y 43245 | -2/Research | Assimilated ARC 9a with formatsys_deep 43291 | -2/Research | Lost 9 allies 43464 | -2/Research | Lost 7 allies 43543 | -2/Research | Identified exit to Garrison 43544 | -2/Research | Entered Garrison 43544 | -2/Garrison | Accompanied by 3 allies 43565 | -2/Garrison | Triggered checkpoint 43589 | -2/Garrison | Destroyed 7 combat bots 43617 | -2/Garrison | Rescued a captive Derelict 43628 | -2/Garrison | Garrison Relay disabled 43643 | -2/Garrison | P-80 Master assimilated allied SN-A4C(h) 43783 | -2/Garrison | Spotted B-90 Cyclops 43830 | -2/Garrison | Assimilated Cyclops 9a with formatsys_high 43835 | -2/Garrison | Lost 3 allies 43858 | -2/Garrison | Triggered checkpoint 43860 | -2/Garrison | Triggered checkpoint 43869 | -2/Garrison | Triggered checkpoint 43871 | -2/Garrison | Triggered checkpoint 43952 | -2/Garrison | Garrison Relay disabled 43984 | -2/Garrison | Triggered checkpoint 43998 | -2/Garrison | Triggered checkpoint 44017 | -2/Garrison | Discovered new exit (range 3) 44046 | -2/Garrison | Discovered new exit (range 10) 44229 | -2/Garrison | Discovered new exit (range 15) 44233 | -2/Garrison | Triggered checkpoint 44255 | -2/Garrison | Discovered new exit (range 49) 44255 | -2/Garrison | Discovered new exit (range 75) 44255 | -2/Garrison | Discovered new exit (range 12) 44255 | -2/Garrison | Discovered new exit (range 53) 44338 | -2/Garrison | Triggered checkpoint 44398 | -2/Garrison | Expanded RIF knowledge: Crosswire 44472 | -2/Garrison | Garrison Relay disabled 44523 | -2/Garrison | Garrison Relay disabled 44787 | -2/Garrison | Entered Research 44787 | -2/Research | Accompanied by 18 allies 44842 | -2/Research | Fabricated M-13 Machinist? 45037 | -2/Research | First assault squad dispatched 45133 | -2/Research | Found Quantum Capacitor 45199 | -2/Research | Lost 4 allies 45234 | -2/Research | Spotted B-90 Cyclops 45243 | -2/Research | Allies destroyed B-90 Cyclops 45361 | -2/Research | Lost 3 allies 45369 | -2/Research | P-80 Master assimilated allied Plague 9l 45422 | -2/Research | Identified exit to Garrison 45478 | -2/Research | Entered Garrison 45478 | -2/Garrison | Accompanied by 19 allies 45496 | -2/Garrison | Triggered checkpoint 45501 | -2/Garrison | Garrison Relay disabled 45546 | -2/Garrison | Garrison Relay disabled 45648 | -2/Garrison | Spotted B-90 Cyclops 45651 | -2/Garrison | Triggered checkpoint 45655 | -2/Garrison | Assimilated Cyclops 9b with formatsys_high 45667 | -2/Garrison | Triggered checkpoint 45676 | -2/Garrison | Triggered checkpoint 45694 | -2/Garrison | Triggered checkpoint 45748 | -2/Garrison | Triggered checkpoint 45748 | -2/Garrison | Lost 9 allies 45754 | -2/Garrison | Garrison Relay disabled 45780 | -2/Garrison | Triggered checkpoint 45791 | -2/Garrison | Discovered new exit (range 5) 45851 | -2/Garrison | Discovered new exit (range 9) 46022 | -2/Garrison | Triggered checkpoint 46116 | -2/Garrison | Discovered new exit (range 11) 46173 | -2/Garrison | Triggered checkpoint 46179 | -2/Garrison | Garrison Relay disabled 46295 | -2/Garrison | Discovered new exit (range 11) 46310 | -2/Garrison | Triggered checkpoint 46318 | -2/Garrison | Garrison Relay disabled 46416 | -2/Garrison | Triggered checkpoint 46426 | -2/Garrison | Garrison Relay disabled 46463 | -2/Garrison | Expanded RIF knowledge: Signal Jamming 47070 | -2/Garrison | Entered Research 47070 | -2/Research | Accompanied by 44 allies 47226 | -2/Research | Lost 4 allies 47453 | -2/Research | Lost 12 allies 47527 | -2/Research | Lost 4 allies 47782 | -2/Research | Discovered new exit (range 16) 47797 | -2/Research | Lost 6 allies 47810 | -2/Research | Identified exit to Testing 47856 | -2/Research | Entered Testing 47856 | -2/Testing | Accompanied by 15 allies 47881 | -2/Testing | Found Prototype Energy Cannon 47882 | -2/Testing | Identified Null Cannon 48161 | -2/Testing | Spotted Striker 48162 | -2/Testing | Spotted Striker 48167 | -2/Testing | Lost 4 allies 48170 | -2/Testing | Assimilated Striker with formatsys_high 48170 | -2/Testing | Assimilated Striker with formatsys_high 48189 | -2/Testing | Spotted Alpha 7 48190 | -2/Testing | Autoassimilated Alpha 7 with RIF 48270 | -2/Testing | Found Prototype Energy Cannon 48366 | -2/Testing | Discovered new exit (range 23) 48421 | -2/Testing | Lost 5 allies 48600 | -2/Testing | Found Prototype Hackware 48850 | -2/Testing | Lost 3 allies 48919 | -2/Testing | Garrison activated, responded to threat 49096 | -2/Testing | Spotted PL-FQQ0K2GX0E 49130 | -2/Testing | Allies destroyed PL-FQQ0K2GX0E 49325 | -2/Testing | Identified exit to Garrison 49344 | -2/Testing | Entered Garrison 49344 | -2/Garrison | Accompanied by 20 allies 49379 | -2/Garrison | Discovered new exit (range 38) 49379 | -2/Garrison | Discovered new exit (range 64) 49379 | -2/Garrison | Discovered new exit (range 74) 49422 | -2/Garrison | Spotted B-90 Cyclops 49436 | -2/Garrison | Triggered checkpoint 49436 | -2/Garrison | Triggered checkpoint 49443 | -2/Garrison | Allies destroyed B-90 Cyclops 49444 | -2/Garrison | Triggered checkpoint 49446 | -2/Garrison | Triggered checkpoint 49504 | -2/Garrison | Lost 8 allies 49528 | -2/Garrison | Triggered checkpoint 49558 | -2/Garrison | Garrison Relay disabled 49658 | -2/Garrison | Lost 3 allies 49850 | -2/Garrison | Triggered checkpoint 49900 | -2/Garrison | Garrison Relay disabled 49911 | -2/Garrison | Garrison Relay disabled 49937 | -2/Garrison | Garrison Relay disabled 49940 | -2/Garrison | Garrison Relay disabled 50051 | -2/Garrison | Triggered checkpoint 50066 | -2/Garrison | Triggered checkpoint 50103 | -2/Garrison | Expanded RIF knowledge: Threat Obfuscation 50202 | -2/Garrison | Garrison Relay disabled 50597 | -2/Garrison | Entered Access 50597 | -1/Access | Accompanied by 28 allies 50597 | -1/Access | Evolved 2 slots: Power x1, Utility x1 50711 | -1/Access | Lost 4 allies 50883 | -1/Access | First assault squad dispatched 50898 | -1/Access | Identified exit to Garrison 50987 | -1/Access | Lost 6 allies 51039 | -1/Access | Entered Garrison 51039 | -1/Garrison | Accompanied by 26 allies 51064 | -1/Garrison | Expanded RIF knowledge: Alert ID Control 51141 | -1/Garrison | Triggered checkpoint 51232 | -1/Garrison | Garrison Relay disabled 51293 | -1/Garrison | Triggered checkpoint 51299 | -1/Garrison | Spotted B-99 Colossus 51319 | -1/Garrison | Triggered checkpoint 51323 | -1/Garrison | Allies destroyed B-99 Colossus 51351 | -1/Garrison | Triggered checkpoint 51368 | -1/Garrison | Lost 15 allies 51399 | -1/Garrison | Garrison Relay disabled 51421 | -1/Garrison | Triggered checkpoint 51465 | -1/Garrison | Discovered new exit (range 14) 51641 | -1/Garrison | Triggered checkpoint 51654 | -1/Garrison | Spotted Striker 51654 | -1/Garrison | Spotted Striker 51674 | -1/Garrison | Discovered new exit (range 2) 51717 | -1/Garrison | Garrison Relay disabled 51736 | -1/Garrison | Lost 5 allies 51844 | -1/Garrison | Found Corrupted Prototype Ballistic Gun 51933 | -1/Garrison | Triggered checkpoint 51966 | -1/Garrison | Discovered new exit (range 11) 51998 | -1/Garrison | Lost 4 allies 52065 | -1/Garrison | Triggered checkpoint 52103 | -1/Garrison | Discovered new exit (range 64) 52103 | -1/Garrison | Discovered new exit (range 86) 52103 | -1/Garrison | Discovered new exit (range 38) 52193 | -1/Garrison | Garrison Relay disabled 52525 | -1/Garrison | Entered Access 52525 | -1/Access | Accompanied by 34 allies 52808 | -1/Access | P-80 Master assimilated allied Plague 10g 52810 | -1/Access | P-80 Master assimilated allied Enforcer 10o 52986 | -1/Access | Lost 5 allies 53162 | -1/Access | Lost 26 allies 53467 | -1/Access | Lost 3 allies 53475 | -1/Access | Spotted B-99 Colossus 53479 | -1/Access | Assimilated Colossus 10a with formatsys_high 53481 | -1/Access | Garrison activated, responded to threat 53604 | -1/Access | P-80 Master assimilated allied Overseer 10b 53626 | -1/Access | Lost 3 allies 53808 | -1/Access | Spotted B-99 Colossus 53813 | -1/Access | Assimilated Colossus 10b with formatsys_high 54077 | -1/Access | Spotted B-99 Colossus 54077 | -1/Access | Spotted B-99 Colossus 54078 | -1/Access | Autoassimilated Colossus 10c with RIF 54125 | -1/Access | Lost 4 allies 54451 | -1/Access | Discovered new exit (range 5) 54526 | -1/Access | Entered Command 54526 | -1/Command | Accompanied by 13 allies 54648 | -1/Command | Lost 10 allies 54852 | -1/Command | Spotted B-99 Colossus 54855 | -1/Command | Assimilated Colossus 10d with formatsys_high 54875 | -1/Command | Spotted Alpha 7 54875 | -1/Command | Spotted Striker 54875 | -1/Command | Spotted Executioner 54875 | -1/Command | Spotted Executioner 54875 | -1/Command | Spotted Alpha 7 54875 | -1/Command | Spotted Striker 54875 | -1/Command | Spotted Executioner 54875 | -1/Command | Spotted Executioner 54876 | -1/Command | Autoassimilated Striker with RIF 54876 | -1/Command | Autoassimilated Alpha 7 with RIF 54876 | -1/Command | Spotted B-99 Colossus 54876 | -1/Command | Assimilated Striker with formatsys_high 54876 | -1/Command | Assimilated Executioner with formatsys_high 54878 | -1/Command | Assimilated Colossus 10e with formatsys_high 54878 | -1/Command | Assimilated Executioner with formatsys_high 54879 | -1/Command | Spotted B-99 Colossus 54882 | -1/Command | Assimilated Alpha 7 with formatsys_high 54890 | -1/Command | Allies destroyed Executioner 54890 | -1/Command | Allies destroyed B-99 Colossus 54917 | -1/Command | Lost 3 allies 55056 | -1/Command | P-80 Master assimilated allied S-43 Plague 55061 | -1/Command | Spotted B-99 Colossus 55062 | -1/Command | P-80 Master assimilated allied Eye 10c 55068 | -1/Command | Allies destroyed B-99 Colossus 55078 | -1/Command | P-80 Master assimilated allied S-43 Plague 55096 | -1/Command | Destroyed 48 combat bots 55107 | -1/Command | Lost 6 parts (2p1n1u2w) 55177 | -1/Command | Lost 97 allies 55197 | -1/Command | Found Prototype Ballistic Gun 55197 | -1/Command | Identified Multirail (x2) 55201 | -1/Command | Found Multirail 55340 | -1/Command | System corruption reached 10% 55367 | -1/Command | Lost 22 allies 55484 | -1/Command | Found Corrupted Multirail 55650 | -1/Command | Spotted M Guard 55650 | -1/Command | Spotted M Guard 55651 | -1/Command | Autoassimilated M Guard with RIF 55651 | -1/Command | Spotted Combat Programmer 55651 | -1/Command | Spotted Combat Programmer 55652 | -1/Command | Autoassimilated Combat Programmer with RIF 55674 | -1/Command | Assimilated Combat Programmer with formatsys_high 55674 | -1/Command | Assimilated M Guard with formatsys_high 56623 | -1/Command | Met MAIN.C 56628 | -1/Command | 0b10 Conduit disabled 56640 | -1/Command | Identified Imp. Potential Cannon 56660 | -1/Command | System corruption reached 30% 56663 | -1/Command | Allies destroyed MAIN.C Shell 56665 | -1/Command | MAIN.C activated Command garrisons 56837 | -1/Command | Destroyed MAIN.C 56840 | -1/Command | Discovered new exit (range 59) 56840 | -1/Command | Discovered new exit (range 94) 56840 | -1/Command | Extracted map data and part IDs from MAIN.C's data core 56848 | -1/Command | Lost 16 parts (3p4n7u2w) 57030 | -1/Command | All MAIN.C guards destroyed 57654 | -1/Command | Found Zero-point Reactor 57657 | -1/Command | Found Vortex Chain Reactor 57660 | -1/Command | Found Exp. Force Field 57663 | -1/Command | Found Hvy. Regenerative Plating 57676 | -1/Command | Found Exp. System Purifier 59956 | *** | Establishing 0b11! Last Messages --------------- 58426_ Dropped Hdn. Centrium Leg. 58427_ Discarded Exp. Biometal Leg. 58427_ Acquired Biometal Heavy Treads. 58441_ Acquired Imp. Utility Shielding. 58448_ Acquired 8 matter. 58515_ Acquired 12 matter. 58656_ Dropped Imp. Potential Cannon. 58657_ Acquired Null Cannon. 58664_ Discarded Relay Coupler [Demolisher]. 58664_ Discarded Relay Coupler [Sentry]. 58665_ Acquired Cargo Storage Unit. 58671_ Acquired Imp. Potential Cannon. 58751_ Acquired 20 matter. 58888_ K-01 Serf collects debris. 59475_ Attempting to rewire P-80 Master. 59475_ P-80 Master cannot be rewired. 59476_ Attempting to rewire P-80 Master. 59476_ P-80 Master cannot be rewired. 59477_ Attempting to rewire P-80 Master. 59477_ P-80 Master cannot be rewired. Map ----- +----------------------------------------------------+ | ### ########## # = !="""" ######?#?#= | | #?# # = ## # """" ### ##### | | #?# + = = ## # "" | | #?# # ! / ## =# * | | ### ###################[=*!%= % | | ## = ############### =%=%%= ## # #### | | ## [%= [=%!= % !*[ ### ##?# | | ## ! =!%!* % % /! #?#####?# | | ^ ## ####%![! / #?????#?### | | ### ##??#*%########"# ########## #?????#???? | | ###?# #???# #??## #??# #?????##### | | ????# #???#!%#??# #??# #?????????? | | ????#! #???#% #??## #??# #?????????? | | ????#% #???#! #???# #??# #?????????? | | ????#! #???# #???# ####^^^ #?????????? | | #???# #???# #???# !!! + ^^^ #?????????? | | ##### #???# #???# !!! ### ###?????????? | | #???# %#???# !!! #?# #+#######?????? | | #???# !#???# #?#%# #?????? | | #########??# #???# #?# # #?????? | | # #??# #???# """ """ #?# # #?????? | | #* #??# #???# """T""" #?# # #?????? | | # #??# #???##############?# + #?????? | | # #??# #????????#####?????# # #?????? | | # #??# #????????# #?????# # #?????? | | ####+####### ########## @ #?????# # #?????? | | ## #?????# # #?????? | | # #????## # #?????? | | # ########+####### ######????# # #?????? | | # #???# #?# #?????????# + !#?????? | | # #???# #?# =##????????# # ####### | | + ##### "" ###! "# ##???# # # # | | # + """ ##!% """""#####!%########""""""" | | # ###### "T ##== = | | # #????# """ ## = * | | + #????# "" ## "" "###########+####### " | | ## #????# ###+#""""""#### #### "" | | ## #????# + + + ] #]]] | | #????########## ##### #]]] ] | | ####?????????????# ##### # * | | ?????????????????# + + # !! * | | ?????????????????#"" ##### ####### | | ?????????????????#"" #???# #?????? | | ?????????????????#"" #???#############?????? | | ?????????????????#T #?????????????????????? | | ?????????????????#"" #?????????????????????? | | ?????????????????#"" #?????????????????????? | | ?????????????????#"" #?????????????????????? | | ?????????????????# #?????????????????????? | | ?????????????????# #?????????????????????? | +----------------------------------------------------+ Best States ------------- Heat Dissipation 119 Coolant Potential 120 Energy Generation 83 Energy Capacity 850 Matter Stores 300 Matter Capacity 300 Sight Range 16 Terrain Scan Density 10 Jamming Range 16 Armor Coverage 2400 Resistance: KI 20 Resistance: EM 90 Utility Shielding 66 Evasion (%) 55 Targeting Accuracy 12 Launcher Accuracy 30 Recoil Reduction 6 Matter Filtering 30 Energy Filtering 50 Kinecelleration 40 Offensive Hacking 20 Defensive Hacking 16 Relay Coupler Types 10 Relay Coupler Value 530 Authchip Count 3 Item Schematics ----------------- Exp. Sensor Array | -9/Materials | Scanalyzed Remote Datajack | -8/Materials | Scanalyzed Hvy. Treads | -7/Factory | Scanalyzed Coolant Network | -2/Testing | Archive Exp. Core Analyzer | -2/Testing | Archive Imp. Energy Well | -2/Testing | Archive Exp. Biometal Leg | -2/Testing | Archive Helical Railgun | -2/Testing | Archive Prc. Phase Gun | -2/Testing | Archive Hvy. Wave Gun | -2/Testing | Archive Prc. Matter Filter | -2/Testing | Archive Thermal Barrier | -2/Testing | Archive Stealth Drone Bay | -2/Testing | Archive Exp. Focal Shield | -2/Testing | Archive Gravity Flail | -2/Testing | Archive Exp. Coolant Injector | -2/Testing | Archive Hvy. Tesla Rifle | -2/Testing | Archive Exp. Energy Well | -2/Testing | Archive Exp. Shock Absorption System | -2/Testing | Archive Imp. Q-thruster | -2/Testing | Archive Exp. Optical Array | -2/Testing | Archive Enh. Armored Medium Treads | -2/Testing | Archive Adv. Plasma Rifle | -2/Testing | Archive Cld. Gravmag System | -2/Testing | Archive Robot Schematics ------------------ M-13 Machinist | -10/Materials | Hacked P-60 Hacker | -6/Factory | Hacked S-43 Plague | -2/Testing | Archive K-01 Serf | -2/Testing | Archive C-65 Expert | -2/Testing | Archive H-88 Terminator | -2/Testing | Archive C-55 Analyst | -2/Testing | Archive R-06 Scavenger | -2/Testing | Archive Fabricated ------------ P-60 Hacker | x2 | -6/Factory | Authchip P-60 Hacker | x2 | -6/Factory | Authchip P-60 Hacker | x2 | -6/Factory | Authchip P-60 Hacker | x2 | -6/Factory | Authchip P-60 Hacker | x2 | -6/Factory | Authchip Adv. Cooling System | x2 | -5/Factory | Preloaded M-13 Machinist | x1 | -5/Factory | Authchip M-13 Machinist | x1 | -5/Factory | Authchip P-60 Hacker | x2 | -5/Factory | Authchip P-60 Hacker | x2 | -5/Factory | Authchip P-60 Hacker | x2 | -4/Factory | Authchip M-13 Machinist | x1 | -4/Factory | Authchip M-13 Machinist | x1 | -2/Research | Authchip Alien Tech Used ----------------- None Achievements -------------- None Challenges ------------ None Game ------ Seed ResetAlphaSpecial Manual? 0 Play Time 07:23:34 Cumulative 500.3 hours Start 2024.08.25 @ 17:20:10 End 2024.08.27 @ 19:55:47 Sessions 23 Manual Loads 0 Difficulty Rogue Special Mode None Game No. 294 Rogue 294 Adventurer 0 Explorer 0 Win Type 1 Total 36 Types 25/3/4/1/1/0/1/1/0 Lore% 80 Gallery% 85 Achievement% 85 Wizard Run 0 Options --------- Layout 0 ASCII 0 Keyboard 1 Movement Numpad Keybinds 0 Fullscreen 2 Font 18/SmallcapsGlow Map View 76x50 Zoom Use 0% Tactical HUD 1 Map Filters NONE Filters NONE Steam 1 RUN: 9207591e-c16e-4cd0-b069-0b08c0c7f4ae